{"text_format":"1","workbook":"xlsx","n_sheets":24,"sheets":["Cover Page","Contents","Facility Info","Operational Data","Operational Summary","Perf. Form 1","Energy Form 1","Permit Compliance","Improvements","Public Liasion","CO2 N2O","Residue Quality ","Water","Air (periodic)","Air (CEMS)","HCl","SO2","NOx","TOC","Particulates","CO 0.5 hourly","CO 95% 10 min","NH3","Template changes log"],"not_rendered":{"charts":8,"images":3,"macros":1,"external_links":0,"defined_names":1,"comments":0,"pivot_tables":0},"unopened":[],"bounds":{"document_bytes":16777216,"sheet_cells":100000,"rows_first":2000,"rows_last":500,"rows_between":2000,"halvings":0,"cell_chars":16384,"cell_head_chars":4096},"cells_cut":0,"cells_raw":0,"read":"whole","date_system":"1900"}

{"sheet":"Cover Page","index":0,"n_rows":62,"n_cols":14,"rows_kept":62,"cut":false,"hidden":false,"merged":[[36,1,36,8],[40,2,40,8],[42,2,42,4],[44,2,44,4],[46,2,46,3],[46,6,46,8],[48,6,48,8],[52,2,52,3],[0,3,5,6],[7,1,23,8],[13,13,18,15],[28,1,28,8],[30,1,30,8],[32,1,32,8],[34,1,34,8]]}
[null,null,null,"Add company logo"]
[null,null,null,null,null,null,null,null,null,null,null,null,null,"Version 24.2a (for incinerators) - 27/11/24"]
[]
[null,null,null,null,null,null,null,null,null,null,null,null,null,"Note that there is another version of this template available for co-incinerators"]
[]
[]
[]
[null,"Add photo"]
[]
[]
[]
[]
[null,null,null,null,null,null,null,null,null,null,null,null,null,"Notes:"]
[null,null,null,null,null,null,null,null,null,null,null,null,null,"This template may require adjustments by individual operators to meet specific reporting requirements as defined in the site Permit(s)"]
[]
[]
[]
[]
[]
[]
[]
[]
[]
[]
[]
[]
[]
[]
[null,"Annual Performance Report 2024"]
[]
[null,"Permit EPR/NP3738SY"]
[]
[null,"SELCHP"]
[]
[null,"South East London Combined Heat and Power"]
[]
[null,"Veolia SELCHP Ltd"]
[]
[null,"Year:",2024.0]
[]
[null,"Address:","The Kennels Site, Landmann Way, Lewisham"]
[]
[null,"Tel: ","02035676100"]
[]
[null,"Email: ","enquiries@selchp.com"]
[]
[null,"Prepared by:","Shehzad Lokhandwala",null,null,"Position:","Environmental Engineer (ERF)"]
[]
[null,"Approved by:","Husain Suwasrawala",null,null,"Position:","General Manager"]
[]
[null,"Version:",1.0]
[]
[null,"Issue Date:","2025-01-27"]
[]
[]
[]
[]
[]
[]
[]
[]
[null,null,9.245,9.401,9.358,9.326]

{"sheet":"Contents","index":1,"n_rows":45,"n_cols":11,"rows_kept":45,"cut":false,"hidden":false,"merged":[[3,1,3,6],[4,1,4,6],[4,10,7,14],[5,1,5,6],[6,1,6,6],[7,1,7,6],[8,1,8,6],[9,1,9,6],[10,1,10,6],[11,1,11,6],[12,1,12,6],[13,1,13,6],[14,1,14,6],[15,1,15,6],[16,1,16,6],[17,1,17,6],[18,1,18,6],[19,1,19,6],[20,1,20,6],[21,1,21,6],[22,1,22,6],[23,1,23,6],[24,1,24,6],[27,1,27,6],[28,1,28,6],[29,1,29,6],[30,1,30,6],[31,1,31,6],[41,1,41,6],[42,1,42,6],[44,0,47,9],[32,1,32,6],[35,1,35,6],[36,1,36,6],[37,1,37,6],[38,1,38,6],[39,1,39,6],[40,1,40,6]]}
[{"$f":"+'Cover Page'!$B$29","v":"Annual Performance Report 2024"},null,null,null,{"$f":"+'Cover Page'!$B$33","v":"SELCHP"}]
[]
["Contents",null,null,null,null,null,null,null,null,null,"Notes:"]
["Section","Subject",null,null,null,null,null,"Page ",null,null,"Section references and Page nos. to be inserted"]
[null,"Facility Information",null,null,null,null,null,3.0,null,null,"Sections and Subjects may require adjustment by individual operators to meet specific reporting requirements as defined in the sites Permit(s)"]
[null,"Operational Data",null,null,null,null,null,4.0]
[null,"Operational Summary",null,null,null,null,null,6.0]
[null,"Performance Form 1",null,null,null,null,null,8.0]
[null,"Energy Form 1",null,null,null,null,null,9.0]
[null,"Permit Compliance",null,null,null,null,null,10.0]
[null,"Improvements",null,null,null,null,null,11.0]
[null,"Public Liaison",null,null,null,null,null,12.0]
[null,"Carbon dioxide and nitrous oxide emissions",null,null,null,null,null,13.0]
[null,"Residue Quality ",null,null,null,null,null,15.0]
[null,"Emissions to Water",null,null,null,null,null,16.0]
[null,"Emissions to Air (periodically monitored)",null,null,null,null,null,17.0]
[null,"Emissions to Air (continuously monitored)",null,null,null,null,null,18.0]
[null,"Hydrogen Chloride emissions",null,null,null,null,null,19.0]
[null,"Sulphur Dioxide emissions",null,null,null,null,null,20.0]
[null,"Oxides of Nitrogen emissions",null,null,null,null,null,21.0]
[null,"Total Organic Carbon emissions",null,null,null,null,null,22.0]
[null,"Particulate Matter emissions",null,null,null,null,null,23.0]
[null,"Carbon Monoxide emissions",null,null,null,null,null,25.0]
[null,"Ammonia emissions",null,null,null,null,null,26.0]
[]
[]
["Version Control"]
["Section","Information",null,null,null,null,null,"Date"]
[]
[]
[]
[]
[]
[]
["Distribution"]
["Copy","Name, Role",null,null,null,null,null,"No."]
[]
[]
[]
[]
[]
[]
[]
[]
["This report is required under the Industrial Emissions Directive’s Article 55(2) requirements on reporting and public information on waste incineration plants and co-incineration plants, which require the operator to produce an annual report on the functioning and monitoring of the plant and make it available to the public. "]

{"sheet":"Facility Info","index":2,"n_rows":22,"n_cols":11,"rows_kept":22,"cut":false,"hidden":false,"merged":[[4,0,17,8],[4,10,13,13],[21,0,53,8],[21,10,30,13]]}
[{"$f":"+'Cover Page'!$B$29","v":"Annual Performance Report 2024"},null,null,null,{"$f":"+'Cover Page'!$B$33","v":"SELCHP"}]
[]
["Plant Description and Design",null,null,null,null,null,null,null,null,null,"Notes:"]
[]
["In 1986, faced with the increasing scarcity and environmental problems of landfill, the London Boroughs of Lewisham, Southwark and Greenwich came together to search for a realistic alternative. In 1988, they formed a Consortium - South East London Combined Heat and Power - from which SELCHP, Energy Recovery Facility (ERF), now takes its name. The facility recovers heat energy from the combustion of non-hazardous waste to raise steam, to generate electricity from a steam turbine which is then exported to the National Grid. Residual steam from the process is used to heat a district heating network, which supplies heat for domestic heating and hot water to local residents. Strict environmental controls and proven operating experience ensure that SELCHP remains consistently compliant with environmental permitting regulations.                                                                                                                                                                                                                                                         \n                                                                                                                                                                                                                                                                                                                                                                                                Technical details of the plant:\nTwo boilers supply steam to one common turbine\nMaximum Permitted Refuse throughput – 464,000 tonnes per annum (29 tonnes per hour per boiler)\nNumber of tipping bays – 11\nSteam output – 38 tonnes of steam per hour at 395°C and 46 bar\nFlue gas treatment – Selective Non-Catalytic Reduction (SNCR) DeNOx, activated carbon injection, semi-wet lime scrubber and high performance bag filters system, discharging into a 100 metre high chimney\nElectrical Generation Capacity – 35MWe and a District Heating potential capacity of 40MWth",null,null,null,null,null,null,null,null,null,"Include summary of plant design, design capacity, no. of combustion lines, electrical and heat capacity and any other general information that describes the facility, its location and purpose "]
[]
[]
[]
[]
[]
[]
[]
[]
[]
[]
[]
[]
[]
[]
["Summary of Operational Processes and Procedures"]
[]
["The main purpose of the activity at SELCHP is to burn non-hazardous municipal waste and to recover energy in the form of steam for both; the export of heat via a district heating network and as electricity for export to the national grid. \nSELCHP is a consortium of Local Authorities and private enterprise that operates a 464,000 tonne per year, mass burn, municipal waste incinerator in Deptford in the London Borough of Lewisham.\nWaste is delivered both; directly to site by refuse collection vehicles and various other waste vehicles. Waste delivered to site is discharged into the waste storage bunker. Oversized and unsuitable wastes are rejected and removed. The waste is then charged into one of two furnaces by dedicated grab cranes. Hydraulic ram feeders control the charging rate of the waste to the furnace grate. Waste is burnt on a reverse acting stoker grate with combustion air supplied in a controlled manner to ensure efficient combustion. The production on Oxides of Nitrogen (NOx) by combustion is mitigated by the injection of ammonia solution into the furnace by a process of Selective Non-Catalytic Reduction (SNCR). Bottom ash from the grate is quenched in a water bath to prevent the release of dust and provide a gas seal, at the ash discharger outlet. Ferrous metal is recovered from the ash by a drum magnet. Residual ash is recovered and sent to a recycling facility in Greenwich, London.\nThe hot gases from the combustion process are passed through a boiler to raise steam, which is then forwarded to a steam turbine to generate up to 32 MW of electricity for export to the national grid. Excess steam, of too low an enthalpy to generate electricity, is taken off the turbine, allowing for the export of heat via the District Heating network to local residents. This heat would otherwise be lost to atmosphere,as waste heat, via the Air Cooled Condenser (ACC). \nExhaust gasses from the boiler are sent to the flue gas treatment plant. Firstly activated carbon is injected to adsorb mercury, heavy metals, dioxins and dioxin like compounds. Secondly, a semi-dry lime scrubbing plant removes acid gasses, predominantly hydrogen chloride (HCl) and sulphur dioxide (SO2). Lastly, the flue gases pass through a series of bad filters to control particulate emissions. The cleaned gasses are discharged from a 100 meter, twin flue (one for each furnace) chimney.     \nSELCHP operates an Environmental Management system accredited to ISO 14001.\nThere are no European sites within 10 km. Air dispersion modeling has established that the site has minimal impact on sites of special scientific interest (SSSI) within that radius. All emissions from the plant have been modelled, demonstrating that it is unlikely to have a significant impact on local air quality, due to it urban setting. \nThere are no releases to controlled waters as part of the process. Process effluents are reused within the process. Residual effluents are released to sewer as trade effluent.\nA Household, commercial and industrial waste transfer station may also be operated within the permit boundary, under conditions set out in ‘Standard Rules Permit SR2008No1’ when required.",null,null,null,null,null,null,null,null,null,"Include summary of key processes and procedures such as (but not limited to); waste reception, control rooms, grate, bed and boiler, energy & heat  generation, cooling systems, residue management, emission controls, health and safety systems, maintenance"]

{"sheet":"Operational Data","index":3,"n_rows":65,"n_cols":10,"rows_kept":65,"cut":false,"hidden":false,"merged":[[33,1,38,1],[52,0,56,0],[3,1,3,2],[5,9,7,9],[7,1,19,1],[9,9,20,9],[21,9,25,9],[23,1,26,1],[28,1,29,1]]}
[{"$f":"+'Cover Page'!$B$29","v":"Annual Performance Report 2024"},null,null,null,{"$f":"+'Cover Page'!$B$33","v":"SELCHP"}]
[]
["Operational Data"]
["Plant Size",464000.0,null,"tonnes pa",30.0,"MWth",30.0,"MWe",null,"Notes:"]
["No. of combustion lines",2.0,null,"No. of Turbines:",null,1.0,null,null,null,"* - RDF to include SRF "]
[null,null,null,null,null,null,null,null,null,"** - Combusted tonnage = tonnes delivered in period + (tonnes in bunker at start of period – tonnes in bunker at end of period), or equivalent calculation depending on plant type"]
["Waste types received","Unit","Q1","Q2","Q3","Q4","Year Total","%"]
["Household / Local Authority","tonnes",98231.51,96669.68,89651.71,103725.55,{"$f":"SUM(C8:F8)","v":388278.45},{"$f":"IF(G8>0,G8/$G$18,\"-\")","v":0.9046908108}]
["Commercial & Industrial ",null,16.7,27.02,4.92,11.22,59.86,0.0001394741118,null,"*** - CHP plants only"]
["Hazardous ",null,"-","-","-","-",0,"-",null,"**** Availability Definition: 'the availability of a line is to be calculated by the number of hours the line reported Continuously Monitored emission levels to the Regulator through the calendar year divided by the total number of hours in that year. \n\nThe overall plant availability is calculated as the Mean of all lines in the plant. For clarity this includes periods of abnormal operation.'  \n\nRationale: The primary function of an Energy from Waste facility is the disposal of waste. It follows therefore that the availability of a plant is determined by the period of time a facility spends undertaking this activity."]
["Clinical",null,23.38,23.78,25.64,25.02,97.82,0.0002279211095]
["Waste wood (biomass) ",null,"-","-","-","-",0,"-"]
["Refuse Derived Fuel * - H'hold/LA",null,321.0,24.0,"-","-",345,0.0008038517968]
["Refuse Derived Fuel *  - C&I",null,"-","-","-","-",0,"-"]
["MRF Residue",null,12709.48,9472.5,7822.46,10398.02,40402.46,0.09413794223]
["Other [Please specify]",null,0.0,0.0,0.0,0.0,0,"-"]
["Other [Please specify]",null,0.0,0.0,0.0,0.0,0,"-"]
["Total waste received",null,{"$f":"SUM(C8:C17)","v":111302.07},106216.98,97504.73,114159.81,429183.59]
["Rejected Waste ",null,0.0,0.0,0.0,0.0,0,{"$f":"IF(G19>0,G19/$G$18,\"-\")","v":"-"}]
["Unprocessed waste transferred out",null,0.0,0.0,0.0,0.0,0,"-"]
["Total waste combusted **",null,114139.19,103889.0,98047.5,114969.7,431045.39]
[null,null,null,null,null,null,null,null,null,"Password for protected cells\nA password has been set to prevent accidental  editing of cells with formulae. \nIf you still need to make an edit for some reason then the password = 1234"]
["Energy Usage / Export","Unit","Q1","Q2","Q3","Q4","Year Total","KWh/te"]
["Power Generated","MWh",68816.0,65063.0,62009.0,71073.0,{"$f":"SUM(C24:F24)","v":266961},{"$f":"IF(G24>0,G24*1000/$G$21,\"-\")","v":619.3338479}]
["Power Exported",null,60427.0,57482.0,53881.0,62613.0,234403,543.8011992]
["Power Used on site",null,8389.0,7581.0,8128.0,8460.0,32558,75.53264866]
["Power Imported",null,0.0,194.0,17.0,0.0,211,0.4895076131]
["Parasitic Load","%",{"$f":"IF(C24>0,1-C25/(C24+C27),\"-\")","v":0.1219047896},0.1191443064,0.1313158998,0.119032544,0.1226513257]
["Thermal Energy Produced ***","MWh","-","-","-","-",{"$f":"SUM(C29:F29)","v":0},{"$f":"IF(G29>0,G29*1000/$G$21,\"-\")","v":"-"}]
["Thermal Energy Exported ***",null,15875.0,9703.0,5939.0,13754.0,45271,105.0260623]
["R1 value (if applicable)","R1",null,null,null,null,0.71]
[]
["Waste Disposal & Recovery","Unit","Q1","Q2","Q3","Q4","Year Total","% inputs"]
["APC Residues - produced","tonnes",2904.0,2817.0,2420.0,3037.0,{"$f":"SUM(C34:F34)","v":11178},{"$f":"IF(G34>0,G34/$G$21,\"-\")","v":0.02593230379}]
["IBA - produced",null,19793.0,20383.0,17175.0,19983.0,77334,0.1794103401]
["Metals recycling",null,2170.0,1464.0,1833.0,2103.0,7570,0.0175619556]
["Other",null,0.0,0.0,0.0,0.0,0,"-"]
["Other",null,0.0,0.0,0.0,0.0,0,"-"]
["Other",null,0.0,0.0,0.0,0.0,0,"-"]
[]
["Raw Material Usage","Unit","Q1","Q2","Q3","Q4","Year Total","kg or Ltr /te"]
["Mains Water","ltrs",2.9275E7,5.4977E7,6.9775E7,3.82798E7,{"$f":"SUM(C42:F42)","v":192306800},{"$f":"IF(G42>0,G42/$G$21,\"-\")","v":446.1404865}]
["Other Water","ltrs",0.0,0.0,0.0,0.0,0,"-"]
["Ammonia","kgs",470930.0,483460.0,448310.0,488410.0,1891110,4.387264181]
["Urea","kgs",0.0,0.0,0.0,0.0,0,"-"]
["Activated Carbon","kgs",22250.0,24900.0,29850.0,35320.0,112320,0.2605758062]
["Lime / hydrated lime","kgs",989340.0,971560.0,831940.0,967020.0,3759860,8.722654475]
["Fuel oil","ltrs",90973.0,51200.0,210871.0,93113.0,446157,1.035058048]
["Gas","cuf",0.0,0.0,0.0,0.0,0]
["Other",null,0.0,0.0,0.0,0.0,0]
[]
["Summary ","Line/Unit","Q1","Q2","Q3","Q4","Year Total",null,"Hrs in year "]
["Availability of waste combustion by line, hrs ****",{"$f":"+B5","v":2},2120.15,1829.83,1940.88,2205.52,{"$f":"SUM(C53:F53)","v":8096.38},{"$f":"+G53/$I$53","v":0.9217190346},8784.0,"Change this figure to 8784 in a leap year"]
[null,2.0,2118.77,2116.75,1796.1,2055.58,8087.2,0.9206739526]
[null,3.0,0.0,0.0,0.0,0.0,0,0]
[null,4.0,0.0,0.0,0.0,0.0,0,0]
[null,5.0,0.0,0.0,0.0,0.0,0,0]
["Overall Availability, mean avg. of all lines, hrs",null,2119.0,1973.0,1868.0,2131.0,{"$f":"AVERAGE(G53:G54)","v":8091.79},0.9211964936]
["Hours of turbine operations, hrs",1.0,2184.0,2090.0,2199.0,2208.0,{"$f":"SUM(C59:F59)","v":8681},0.9882741348]
["Hours of turbine operations, hrs",2.0,0.0,0.0,0.0,0.0,0,0]
["Hours of heat / steam export",null,0.0,0.0,0.0,0.0,null,{"$f":"IF(B61>0,G60/I53,\"n/a\")","v":"n/a"}]
["Net Calorific Value of waste","MJ/kg",9.245,9.401,9.358,9.326,{"$f":"AVERAGE(C62:F62)","v":9.3325}]
["Abnormal Events","qty.",0.0,0.0,0.0,0.0,{"$f":"SUM(C63:F63)","v":0},{"$f":"IF(G63>0,\"yes\",\"no\")","v":"no"}]
["Abnormal operation","hours",0.0,0.0,0.0,0.0,0,{"$f":"+(G64)/I53","v":0}]
["Permit Breaches","qty.",0.0,0.0,1.0,0.0,1,{"$f":"IF(G65>0,\"yes\",\"no\")","v":"yes"}]

{"sheet":"Operational Summary","index":4,"n_rows":76,"n_cols":11,"rows_kept":76,"cut":false,"hidden":false,"merged":[[55,1,55,8],[56,1,56,8],[57,1,57,8],[58,1,58,8],[59,1,59,8],[60,1,60,8],[61,1,61,8],[62,1,62,8],[63,1,63,8],[64,1,64,8],[4,0,26,8],[4,10,13,13],[30,0,51,8],[30,10,39,13],[53,1,53,8],[54,1,54,8],[54,10,65,13],[72,1,72,8],[73,1,73,8],[74,1,74,8],[75,1,75,8],[65,1,65,8],[66,1,66,8],[67,1,67,8],[68,1,68,8],[69,1,69,8],[70,1,70,8],[71,1,71,8]]}
[{"$f":"+'Cover Page'!$B$29","v":"Annual Performance Report 2024"},null,null,null,{"$f":"+'Cover Page'!$B$33","v":"SELCHP"}]
[]
["Summary of Plant Operations and Maintenance during the reporting year",null,null,null,null,null,null,null,null,null,"Notes:"]
[]
["Overall plant availability for 2024 was 92.37%, a significant improvment compared to 2023. This was due to the MET Police enforced shutdown in January 2023 to allow for a Police investigation and delayed return to service of the station following the annual maintenance shutdown.\nBoiler 1: In addition to planned outage in June, the boiler suffered multiple breakdowns in March,July, August, September due to NOx cannister explosions. \n\nBoiler 2:  In addition to planned outage in July, the boiler suffered multiple breakdowns in February,June, July, August, October and December.\n\nThe annual outage ran from the 16/06/24 to the 01/07/2024 for boiler 1 and from the 04/07/24 to the 18/07/2024 for boiler 2.\n",null,null,null,null,null,null,null,null,null,"Include summary of key operational and/or maintenance activity undertaken in the year, such as any major component upgrades and/or replacements "]
[]
[]
[]
[]
[]
[]
[]
[]
[]
[]
[]
[]
[]
[]
[]
[]
[]
[]
[]
[]
[]
[]
[]
["Summary of Residue Handling for the reporting year"]
[]
["All incinerator bottom ash is loaded to tipper trucks by excavators and sent for reprocessing at a dedicated and permitted facility in Charlton, London (Recycling code R4). Where the majority of ferrous and non-ferrous metals are extracted for sale to the metals traders. Residual aggregates are sold for use in the a range of permissible construction projects. Air pollution control residue, transported as a powder and loaded into road tankers, is predominantly sent to Veolia Empire Works, Walsall for treatment with waste industrial sulphuric/phosphoric acid and disposal to landfill (Disposal code D9). The remainder was sent to a deep storage facility (disposal code D12). Ferrous metal separated from the IBA is sold to and collected by reputable scrap metal traders. ",null,null,null,null,null,null,null,null,null,"Include in here a summary of residue handling regimes and destinations "]
[]
[]
[]
[]
[]
[]
[]
[]
[]
[]
[]
[]
[]
[]
[]
[]
[]
[]
[]
[]
[]
[]
[{"$f":"+'Cover Page'!C39","v":2024},"Plant shut-downs"]
["Date","Reason for shut-down",null,null,null,null,null,null,null,null,"Provide a very brief reason for plant shut-down e.g. \"Shut-down prior to major outage\"; \"Emergency shut-down due to boiler tube leak\"\n\nThere is no need to include periods of hot-standby here (e.g. to clear feed chute hopper blockages).\n\nFor clinical waste incinerators which require regular shut-downs for boiler cleaning, there is no need to record these here. "]
["14th-15th Feb","Controlled shut-down due to refuse crane no. 1 and no. 2 failure, unable to feed waste - Line 1"]
["14th Feb","Controlled shut-down due to refuse crane no. 1 and no. 2 failure, unable to feed waste - Line 2"]
["24th to 27th Feb","Controlled shut-down due to repair Tube leak in the external economiser - Line 2"]
["11th to 12th March","Controlled shut-down due to repair Tube leak in the internal economiser - Line 1"]
["16th June- 1st July","Planned shut down outage - Line 1"]
["27th- 30th June  ","Controlled shut-down due to repairs on grate- Line 2"]
["2nd- 3rd July","Controlled shut-down to UFA fan bearing and return from outage- Line 1"]
["14th -15th July","Boiler trip- Line 1"]
["21st- 22nd July","Controlled shut-down due to Ash discharge blockage- Line 1"]
["04th- 18th July","Planned shut down outage - Line 2"]
["30th-31st July","Controlled shut-down to repair Tube leak - Line2"]
["1st-3rd Aug","Controlled shut-down due to tube leak and repairs on grate- Line 1"]
["13th-16th Aug","Controlled shut-down due to tube leak repairs- Line 1"]
["01st Aug","Controlled shut-down to repair Tube leak - Line2"]
["05th- 07th Aug","Controlled shut-down to repair Tube leak - Line2"]
["12th- 14th Sep","Controlled shut-down due to repairs on grate- Line 1"]
["7th- 9th Oct","Controlled shut-down due to repairs on grate- Line 2"]
["14th Oct","ID fan tripped- Line 2"]
["15th Oct","ID fan tripped- Line 2"]
["28th Nov","Controlled shut-down due to lime plant change over- Line 1"]
["14th- 18th Dec","Controlled shut-down due to repairs on grate- Line 2"]

{"sheet":"Perf. Form 1","index":5,"n_rows":62,"n_cols":10,"rows_kept":62,"cut":false,"hidden":false,"merged":[[12,0,12,1],[13,0,13,1],[13,2,13,3],[13,4,13,5],[13,6,13,7],[13,8,13,9],[14,8,14,9],[14,0,14,3],[15,0,15,1],[15,2,15,3],[15,4,15,5],[15,6,15,7],[15,8,15,9],[16,0,16,9],[18,4,18,5],[18,6,18,7],[17,0,17,1],[17,2,17,3],[17,4,17,5],[17,6,17,7],[17,8,17,9],[18,2,18,3],[18,8,18,9],[20,6,20,7],[20,8,20,9],[18,0,18,1],[19,0,19,1],[19,2,19,3],[19,4,19,5],[19,6,19,7],[19,8,19,9],[20,0,20,1],[22,0,22,3],[22,4,22,5],[22,6,22,7],[22,8,22,9],[23,4,23,5],[23,6,23,7],[23,8,23,9],[23,0,23,3],[25,0,25,9],[26,0,28,9],[31,0,31,3],[31,7,31,8],[32,4,32,5],[32,7,32,8],[32,0,32,3],[33,0,33,3],[33,4,33,5],[33,7,33,8],[34,0,34,3],[34,4,34,5],[34,7,34,8],[36,7,36,8],[37,7,37,8],[35,0,35,3],[35,4,35,5],[35,7,35,8],[36,0,36,3],[36,4,36,5],[37,0,37,3],[37,4,37,5],[49,0,49,9],[50,0,51,9],[38,0,38,9],[39,0,40,9],[43,0,43,1],[43,2,43,9],[45,0,45,1],[46,0,46,1],[47,0,47,1],[2,0,2,4],[2,6,2,8],[3,1,3,4],[5,3,5,4],[5,6,5,7],[8,0,8,1],[8,2,8,3],[10,6,10,7],[10,8,10,9],[8,4,8,5],[8,6,8,7],[8,8,8,9],[9,0,9,9],[10,0,10,1],[10,2,10,3],[10,4,10,5],[12,4,12,5],[12,6,12,7],[11,0,11,1],[11,2,11,3],[11,4,11,5],[11,6,11,7],[11,8,11,9],[12,2,12,3],[12,8,12,9],[14,4,14,5],[14,6,14,7],[20,2,20,3],[20,4,20,5],[21,0,21,1],[21,2,21,3],[21,4,21,5],[21,6,21,7],[21,8,21,9]]}
[{"$f":"+'Cover Page'!C39","v":2024}," Annual Reporting Performance Form 1"]
[]
[{"$f":"+'Cover Page'!B31","v":"Permit EPR/NP3738SY"},null,null,null,null,"Operator: ",{"$f":"+'Cover Page'!B37","v":"Veolia SELCHP Ltd"}]
["Facility:",{"$f":"+'Cover Page'!B33:I33","v":"SELCHP"},null,null,null,"Form:","Performance 1"]
[]
["Reporting  Period from: ",null,null,"2024-01-01",null,"to:","2024-12-31"]
[]
[{"$f":"+A1","v":2024},"Annual Reporting of Waste Disposal and Recovery"]
["Waste Description",null,"Disposal Route(s)",null,"Disposal Tonnes",null,"Recovery Tonnes",null,"% / tonne of waste incinerated"]
["1) Hazardous Wastes"]
["APC Residues",null,"D9",null,11178.0,null,0.0,null,{"$f":"IF((E11+G11)>0,(E11+G11)/'Operational Data'!$G$21, \"-\")","v":0.02593230379}]
["IBA",null,null,null,0.0,null,0.0,null,{"$f":"IF((E12+G12)>0,(E12+G12)/'Operational Data'!$G$21, \"-\")","v":"-"}]
[null,null,null,null,null,null,null,null,{"$f":"IF((E13+G13)>0,(E13+G13)/'Operational Data'!$G$21, \"-\")","v":"-"}]
[null,null,null,null,null,null,null,null,{"$f":"IF((E14+G14)>0,(E14+G14)/'Operational Data'!$G$21, \"-\")","v":"-"}]
["Total Hazardous Waste",null,null,null,{"$f":"SUM(E11:F14)","v":11178},null,{"$f":"SUM(G11:H14)","v":0},null,{"$f":"IF((E15+G15)>0,(E15+G15)/'Operational Data'!$G$21, \"-\")","v":0.02593230379}]
[]
["2) Non-Hazardous Wastes"]
["IBA",null,"R5",null,0.0,null,77333.14,null,{"$f":"IF((E18+G18)>0,(E18+G18)/'Operational Data'!$G$21, \"-\")","v":0.1794083449}]
["Ferrous Metal",null,"R4",null,0.0,null,7570.0,null,{"$f":"IF((E19+G19)>0,(E19+G19)/'Operational Data'!$G$21, \"-\")","v":0.0175619556}]
["Process Water",null,null,null,null,null,null,null,{"$f":"IF((E20+G20)>0,(E20+G20)/'Operational Data'!$G$21, \"-\")","v":"-"}]
[null,null,null,null,null,null,null,null,{"$f":"IF((E21+G21)>0,(E21+G21)/'Operational Data'!$G$21, \"-\")","v":"-"}]
[null,null,null,null,null,null,null,null,{"$f":"IF((E22+G22)>0,(E22+G22)/'Operational Data'!$G$21, \"-\")","v":"-"}]
["Total Non-Hazardous Waste",null,null,null,{"$f":"SUM(E18:F22)","v":0},null,{"$f":"SUM(G18:H22)","v":84903.14},null,{"$f":"IF((E23+G23)>0,(E23+G23)/'Operational Data'!$G$21, \"-\")","v":0.1969703005}]
["TOTAL WASTE",null,null,null,{"$f":"+E23+E15","v":11178},null,{"$f":"+G23+G15","v":84903.14},null,{"$f":"IF((E24+G24)>0,(E24+G24)/'Operational Data'!$G$21, \"-\")","v":0.2229026043}]
[]
["Operator’s comments :"]
[]
[]
[]
[]
[{"$f":"+A1","v":2024},"Annual Reporting of Water and Other Raw Material Usage"]
["Raw Material",null,null,null,"Usage",null,"Unit","Specific Usage",null,"Unit"]
["Mains Water",null,null,null,{"$f":"+'Operational Data'!G42/1000","v":192306.8},null,"m3",{"$f":"IF(E33>0,E33/'Operational Data'!$G$21,\"-\")","v":0.4461404865},null,"m3/te"]
["Total Water",null,null,null,{"$f":"+'Operational Data'!G43+'Operational Data'!G42/1000","v":192306.8},null,"m3",{"$f":"IF(E34>0,E34/'Operational Data'!$G$21,\"-\")","v":0.4461404865},null,"m3/te"]
["Urea / Ammonia",null,null,null,{"$f":"+'Operational Data'!G44","v":1891110},null,"kg",{"$f":"IF(E35>0,E35/'Operational Data'!$G$21,\"-\")","v":4.387264181},null,"kg/te"]
["Activated Carbon",null,null,null,{"$f":"+'Operational Data'!G46","v":112320},null,"kg",{"$f":"IF(E36>0,E36/'Operational Data'!$G$21,\"-\")","v":0.2605758062},null,"kg/te"]
["Lime / hydrated lime / Sodium Bicarb.",null,null,null,{"$f":"+'Operational Data'!G47","v":3759860},null,"kg",{"$f":"IF(E37>0,E37/'Operational Data'!$G$21,\"-\")","v":8.722654475},null,"kg/te"]
[]
["Operator’s comments :"]
[]
[]
[]
[{"$f":"+A31","v":2024},"Annual Reporting of other performance indicators "]
["Parameter",null,"Results by Line"]
[null,null,"A1","A2","A3","A4","A5",null,"Turbine 1","Turbine 2"]
["Operating hours for the year, hours",null,8096.38,8087.2,null,null,null,null,8680.8]
["Number of periods of abnormal operation, qty.",null,0.0,0.0]
["Cumulative hours of abnormal operation for this year, hours",null,0.0,0.0]
[]
["Operator’s comments :"]
[]
[]
[]
["Signed: ","Shehzad",null,null,null,null,"Date:","2025-01-23"]
[]
[]
[]
[]
[]
[]
[]
[null,null,9.245,9.401,9.358,9.326]

{"sheet":"Energy Form 1","index":6,"n_rows":62,"n_cols":8,"rows_kept":62,"cut":false,"hidden":false,"merged":[[2,6,2,8],[4,1,4,4],[6,3,6,4],[6,6,6,7],[8,0,8,2],[8,3,8,4],[8,6,8,8],[10,6,10,8],[11,6,11,8],[12,6,12,8],[13,6,13,8],[14,6,14,8],[15,6,15,8],[9,0,9,2],[9,3,9,4],[9,6,9,8],[10,0,10,2],[10,3,10,4],[11,0,11,2],[11,3,11,4],[15,0,15,2],[17,0,17,8],[18,0,24,8],[12,0,12,2],[12,3,12,4],[13,0,13,2],[13,3,13,4],[14,0,14,2],[14,3,14,4],[15,3,15,4]]}
[{"$f":"+'Cover Page'!C39","v":2024}," Annual Reporting of Energy Usage/Export"]
[]
[{"$f":"+'Cover Page'!B31","v":"Permit EPR/NP3738SY"},null,null,null,null,"Operator: ",{"$f":"+'Cover Page'!B37","v":"Veolia SELCHP Ltd"}]
[]
["Facility:",{"$f":"+'Cover Page'!B33:I33","v":"SELCHP"},null,null,null,"Form:","Energy 1"]
[]
["Reporting  Period from: ",null,null,{"$f":"+'Perf. Form 1'!D6:E6","v":"2024-01-01"},null,"to:",{"$f":"+'Perf. Form 1'!G6:H6","v":"2024-12-31"}]
[]
["Energy Source",null,null,"Energy Usage",null,"Unit","Specific Usage (KWh/tonne incinerated"]
["Electricity Produced",null,null,{"$f":"+'Operational Data'!G24","v":266961},null,"MWh",{"$f":"+'Operational Data'!H24","v":619.3338479}]
["Electricity Imported   ",null,null,{"$f":"+'Operational Data'!G27","v":211},null,"MWh",{"$f":"+'Operational Data'!H27","v":0.4895076131}]
["Electricity Exported",null,null,{"$f":"+'Operational Data'!G25","v":234403},null,"MWh",{"$f":"+'Operational Data'!H25","v":543.8011992}]
["Gas Oil",null,null,null,null,"tonnes"]
["Steam/hot water exported",null,null,{"$f":"+'Operational Data'!G30","v":45271},null,"GWh",{"$f":"+'Operational Data'!H30","v":105.0260623}]
[]
[]
[]
["Operator’s comments :"]
[]
[]
[]
[]
[]
[]
[]
[]
[]
[]
["Signed: ","Shehzad",null,null,null,null,"Date:","2025-01-23"]
[]
[]
[]
[]
[]
[]
[]
[]
[]
[]
[]
[]
[]
[]
[]
[]
[]
[]
[]
[]
[]
[]
[]
[]
[]
[]
[]
[]
[]
[]
[]
[]
[null,null,9.245,9.401,9.358,9.326]

{"sheet":"Permit Compliance","index":7,"n_rows":62,"n_cols":12,"rows_kept":62,"cut":false,"hidden":false,"merged":[[9,2,9,4],[9,5,9,8],[10,0,10,1],[10,2,10,4],[9,0,9,1],[11,0,11,1],[11,2,11,4],[11,5,11,8],[12,0,12,1],[12,2,12,4],[13,2,13,4],[13,5,13,8],[14,0,14,1],[14,2,14,4],[24,3,24,5],[25,3,25,5],[26,0,26,8],[28,0,28,10],[29,1,29,3],[29,4,29,6],[29,7,29,9],[32,4,32,6],[32,7,32,9],[33,1,33,3],[33,4,33,6],[33,7,33,9],[34,4,34,8],[30,1,30,3],[30,4,30,6],[30,7,30,9],[31,1,31,3],[31,4,31,6],[31,7,31,9],[32,1,32,3],[8,0,8,1],[13,0,13,1],[14,5,14,8],[15,0,15,1],[15,2,15,4],[15,5,15,8],[16,0,16,1],[16,2,16,4],[16,5,16,8],[18,0,18,10],[7,0,7,1],[7,2,7,8],[8,2,8,4],[8,5,8,8],[8,11,20,11],[10,5,10,8],[12,5,12,8],[19,7,19,8],[23,1,23,2],[24,1,24,2],[25,1,25,2],[19,1,19,2],[19,3,19,5],[21,1,21,2],[21,3,21,5],[22,1,22,2],[22,3,22,5],[23,3,23,5]]}
[{"$f":"+'Cover Page'!$B$29","v":"Annual Performance Report 2024"},null,null,null,{"$f":"+'Cover Page'!$B$33","v":"SELCHP"}]
[]
["Summary of Permit Compliance"]
[]
["Compliance with permit limits for continuously monitored pollutants"]
[]
["The plant met its emission limits as shown in the table below:"]
["Substance",null,"Percentage time compliant during operationNote 1",null,null,null,null,null,null,null,null,"Notes:"]
[null,null,"Half-hourly limit",null,null,"Daily limit",null,null,null,null,null,"Note 1: Please report to 2 decimal places, i.e. xx.xx%\n\nNote 2: Please enter into this table any permit non-compliances that the EA has given a CCS score for. Please also enter any other non-compliances which you have notified to the EA (e.g. ELV exceedances) but which have not yet been assessed by the EA. There is no need to enter any notifications which were subsequently assessed by the EA not to be permit breaches.  \n\nNote 3: Please enter information here (rather than just referencing the notifications that were sent to the EA) including where relevant the incineration line reference, pollutant and value of the measured result for any ELV exceedances.   \n\n"]
["Particulates",null,1.0,null,null,1.0]
["Oxides of nitrogen",null,1.0,null,null,1.0]
["Sulphur dioxide",null,1.0,null,null,1.0]
["Carbon monoxide",null," 100% of 95% of 10-min averages",null,null,1.0]
["Total organic carbon",null,1.0,null,null,1.0]
["Hydrogen chloride",null,1.0,null,null,1.0]
["Hydrogen fluoride",null,1.0,null,null,1.0]
[]
[]
["Summary of non-compliances under the permit Note 2"]
["Date","Summary of non-compliance Note 3",null,"Reason ",null,null,"Measures taken to prevent reoccurrence","CCS score if applicable*"]
[null,null,null,null,null,null,null,"Impact","Root cause"]
["2024-08-20","A2 Dioxins and Furans (NATO I-TEQ) of 0.088 - 0.089 ng/m3 with a measurement uncertainty of 0.019 against the limit of 0.06 ng/m3\t\t\n\t\t",null,"It is assumed that the potential small variation in waste input composition during the exceedance period could\nhave been a likely contributing factor.",null,null,"Dioxins protocol followed and two additional accelerated stack samplings conducted. Following techical review caarbon dosing rate across both boilers was increased.",4.0,"None"]
[]
[]
[]
[]
["*If the Environment Agency (EA) has given a Compliance Classification Scheme (CCS) score due to a permit non-compliance it should be entered here (CCS4 = No impact; CCS3 = Minor impact; CCS2 = Significant impact; CCS1 = Major impact). If the EA has not yet assessed a non-compliance which you have notified to them, these columns should be left blank. Enter N/A if no score was given for the root cause.  "]
[]
["Summary of any complaints received and actions to taken to resolve them."]
["Date","Summary of complaint [including Line/Reference]",null,null,"Reason (including whether substantiated by the operator or the EA)",null,null,"Measures taken to prevent reoccurrence"]
["2024-03-04","175215- Noise complaint by MoP, email to selchp.enquiries",null,null,"Other industrial site in surrounding area.",null,null,"N/A"]
["2024-09-12","208973- Local resident mistook condensing steam from stack for smoke.",null,null,"Wrong assumption",null,null,"N/A"]
[]
[]
[]
[]
[]
[]
[]
[]
[]
[]
[]
[]
[]
[]
[]
[]
[]
[]
[]
[]
[]
[]
[]
[]
[]
[]
[]
[]
[]
[null,null,9.245,9.401,9.358,9.326]

{"sheet":"Improvements","index":8,"n_rows":39,"n_cols":5,"rows_kept":39,"cut":false,"hidden":false,"merged":[[4,0,4,8],[5,0,13,8],[15,0,15,8],[16,0,24,8],[26,0,26,8],[27,0,35,8],[37,0,37,8],[38,0,47,8]]}
[{"$f":"+'Cover Page'!$B$29","v":"Annual Performance Report 2024"},null,null,null,{"$f":"+'Cover Page'!$B$33","v":"SELCHP"}]
[]
["Summary of Plant Improvements"]
[]
["Summary of any efficiency improvements that have been completed within the year."]
["In conjunction with Westminster city council, a private wire project was completed in 2023 to supply electrical power to charge the new EV refuse collection vehicles at a neighbouring vehicle depot. Transmission losses should be lower than supplying the same power to the national grid. "]
[]
[]
[]
[]
[]
[]
[]
[]
[]
["Summary of any permit improvement conditions that have been completed within the year and the resulting environmental benefits."]
["n/a"]
[]
[]
[]
[]
[]
[]
[]
[]
[]
["Summary of any changes to the plant or operating techniques which required a variation to the permit and a summary of the resulting environmental impact."]
["None"]
[]
[]
[]
[]
[]
[]
[]
[]
[]
["Summary of any other improvements made to the plant or planned to be made and a summary of the resulting environmental benefits."]
["As part of the life cycle analysis of the Facility the CEMS system was replaced in October 2024.  All existing analysers were replaced, plus an additional standby system was installed so that each incineration line has a dedicated standby system enhancing the system reliability and efficiency. "]

{"sheet":"Public Liasion","index":9,"n_rows":29,"n_cols":5,"rows_kept":29,"cut":false,"hidden":false,"merged":[[10,0,11,1],[12,0,13,1],[16,0,16,1],[17,0,18,1],[19,0,20,1],[21,0,22,1],[23,0,24,1],[25,0,26,1],[5,0,5,1],[5,2,5,8],[6,0,7,1],[6,2,7,8],[8,0,9,1],[8,2,9,8],[10,2,11,8],[25,2,26,8],[28,0,28,8],[12,2,13,8],[15,0,15,8],[16,2,16,8],[17,2,18,8],[19,2,20,8],[21,2,22,8],[23,2,24,8]]}
[{"$f":"+'Cover Page'!$B$29","v":"Annual Performance Report 2024"},null,null,null,{"$f":"+'Cover Page'!$B$33","v":"SELCHP"}]
[]
["Details of Public & Stakeholder Liaison"]
[]
["Summary of events held during the reporting year."]
["Date",null,"Description"]
["Various",null,"Site tours are laid on for internal and external stakeholders, as well as, higher education students. Tours are requested at selchp.com and are approved on a case by case basis. "]
[]
["2024-09-22",null,"SELCHP annual open day, as part of ‘Open House London’ "]
[]
[]
[]
[]
[]
[]
["List of events planned for next year"]
["Date",null,"Description"]
["Various",null,"Site tours are laid on for internal and external stakeholders, as well as, higher education students. Tours are requested at selchp.com and are approved on a case by case basis. "]
[]
["2025-09-01",null,"It is intended that an open day will be held in 2025.\t\t\t\t\t\n\t\t\t\t\t\t"]
[]
[]
[]
[]
[]
[]
[]
[]
["If you wish to be involved in the public liaison programme, please contact enquiries@selchp.com"]

{"sheet":"CO2 N2O","index":10,"n_rows":25,"n_cols":6,"rows_kept":25,"cut":false,"hidden":false,"merged":[[16,2,16,3],[19,2,19,3],[22,2,22,3],[25,1,25,3],[4,0,4,3],[8,2,8,3],[9,0,9,3],[11,2,11,3],[12,0,12,1],[13,0,13,3],[17,0,17,3]]}
[{"$f":"+'Cover Page'!$B$29","v":"Annual Performance Report 2024"},null,{"$f":"+'Cover Page'!$B$33","v":"SELCHP"}]
[]
["Carbon dioxide emissions and biogenic content of waste inputs",null,null,null,null,"Notes:"]
[]
["Carbon dioxide emissions (all types of plant)"]
[null,"Annual mass of carbon dioxide released","tonnes ",354284.0]
[null,"Annual mass of carbon dioxide released per tonne of waste burned","t CO2 / t waste ",{"$f":"D6/'Operational Data'!G21","v":0.8219180815}]
[null,"Annual mass of carbon dioxide released per MWh of energy exported","t CO2 / MWh export ",{"$f":"D6/'Operational Data'!G25","v":1.511431168}]
[null,"Description of how annual carbon dioxide mass emission has been calculated. \nSee Note 1","Average of average CO2% over the year converted to mg/m3 of flue gas and multiplied by total flue gas volume. All data from CEMS DHAS, QAL2'ed and QAL3'ed.",null,null,"Note 1: All permits require operators to continuously monitor CO2 to EN14181 and flow to BS EN 16911-2 (unless otherwise agreed in writing). Operators must therefore use the results from these instruments to calculate their annual CO2 emissions. Where an operator does not have a flow meter calibrated to BS EN 16911-2, the averaged flow measurement from that year's periodic monitoring can be used instead. If the plant does not have calibrated CO2 CEMS, a suitably justified emissions factor can be used."]
["Nitrous oxide emissions (only plants which use ammonia or urea to abate NOx emissions)"]
[null,"Annual mass emissions of nitrous oxide","tonnes N2O",10.317]
[null,"Description of how annual nitrous oxide mass emission has been calculated\nSee Note 2","Average of average CO2% over the year converted to mg/m3 of flue gas and multiplied by total flue gas volume. All data from CEMS DHAS, QAL2'ed and QAL3'ed.",null,null,"Note 2: All permits require operators to continuously monitor N2O to EN14181 and flow to BS EN 16911-2, unless otherwise agreed in writing. Operators must therefore use the results from these instruments to calculate their annual N2O emissions. Where an operator does not have a flow meter calibrated to BS EN 16911-2, the averaged flow measurement from periodic monitoring can be used instead. If the plant does not have calibrated N2O CEMS, data from periodic monitoring or a suitably justified emissions factor can be used instead."]
["Total annual carbon dioxide + nitrous oxide emissions. \nSee Note 3. ",null,"tonnes CO2e",{"$f":"(D11*265)+D6","v":357018.005},null,"Note 3: Total annual carbon dioxide and nitrous oxide emissions reported as carbon dioxide equivalent where 1 tonne nitrous oxide is equivalent to 265 tonnes carbon dioxide."]
["Biogenic CO2 emissions (See Note 4)",null,null,null,null,"Note 4: Only plants combusting residual municipal waste, refuse derived fuel or solid recovered fuel need complete this section. "]
[null,"Percentage of total carbon dioxide emissions arising from biogenic waste","%",0.5394]
[null,"No. of measurements undertaken","Number",12.0]
[null,"Description of how percentage biogenic carbon dioxide emissions have been measured or calculated.\nSee Note 5","Calculated by BIOMA software using CEMS data.",null,null,"Note 5: The results from C14 sampling should be used if this is carried out at the plant (either via an installed sampler or from spot samples).  \nOtherwise, as an approximation (and in lieu of any more accurate metrics which may be developed in future), the measured or estimated biogenic fraction by net calorific value (see Note 6) can be assumed to be the same as the biogenic CO2 fraction of the total CO2 emissions from the plant. "]
["Biogenic fraction of waste feedstock (See Note 4)"]
[null,"Yearly average biogenic percentage of the waste by net calorific value (NCV)","%",0.4443]
[null,"Description of how biogenic percentage (by NCV) has been calculated or estimated. \nSee Note 6","Calculated by BIOMA software using CEMS data.",null,null,"Note 6: If C14 sampling is carried out at the plant, the methodology set out in the embedded document entitled \"Renewable Energy Association Energy Content of Fuels - Description of Method\" embedded below can be used to calculate the biogenic percentage by net calorific value. Otherwise, data from waste sampling or BIOMA software can be used; or if none of these are available, an estimated figure with justification or a figure assumed on the basis of up-to-date industry data can be used. "]
[null,"Yearly average biogenic percentage of the waste by mass","%",0.4443]
[null,"If waste sampling undertaken, no. of samples used to ascertain average biogenic percentages above","Number",12.0]
[null,"Description of how biogenic percentage (by mass) has been calculated or estimated. \nSee Note 7",null,null,null,"Note 7: Where available, data from waste sampling should be used; otherwise, an estimated figure with justification can be used, or a figure assumed on the basis of up-to-date industry data. "]
[]
[null,"Comments:"]

{"sheet":"Residue Quality ","index":11,"n_rows":62,"n_cols":6,"rows_kept":62,"cut":false,"hidden":false,"merged":[[5,0,6,6],[7,0,8,6],[9,0,10,6],[12,0,12,6],[13,0,13,1],[13,2,13,6],[14,2,15,6],[16,2,17,6],[18,2,19,6],[20,2,21,6],[22,2,23,6],[26,0,26,6],[27,2,28,2],[27,3,27,6],[30,0,30,1],[31,0,31,1],[32,0,32,1],[14,0,15,1],[16,0,17,1],[18,0,19,1],[20,0,21,1],[22,0,23,1],[27,0,28,1],[29,0,29,1],[31,3,31,4],[32,3,32,4],[33,0,33,6],[35,0,35,6],[36,0,41,6],[28,3,28,4],[28,5,28,6],[29,3,29,4],[29,5,29,6],[30,3,30,4],[30,5,30,6],[31,5,31,6],[32,5,32,6]]}
[{"$f":"+'Cover Page'!$B$29","v":"Annual Performance Report 2024"},null,null,null,{"$f":"+'Cover Page'!$B$33","v":"SELCHP"}]
[]
["Residue Quality Monitoring Requirements"]
[]
["Summary of monitoring undertaken and compliance"]
["IBA - Two samples per month are analysed according to the ESA protocol "]
[]
["APC - One sample per quarter is analysed as per permit requirements"]
[]
[]
[]
[]
["Commentary on any specific events"]
["Date & Event",null,"Description"]
[]
[]
[]
[]
[]
[]
[]
[]
[]
[]
[]
[]
["Residue Quality Monitoring Results"]
["Parameter (unit) ",null,"Limit*","Normal Operation "]
[null,null,null,"Bottom ash  ",null,"APC Residues"]
["Loss on Ignition (average %)",null,"<5%","-"]
["Total Organic Carbon (average %)",null,"<3%",1.5]
["No. of Assessments Undertaken",null,"---",24.0]
["No. of Hazardous Results",null,"---",0.0]
["* The permit will specify a limit of either 5% loss on ignition or 3% total organic carbon. If both are measured anyway, please enter the results here, even where the limit does not apply. "]
[]
["Comments :"]
[]
[]
[]
[]
[]
[]
[]
[]
[]
[]
[]
[]
[]
[]
[]
[]
[]
[]
[]
[]
[]
[]
[]
[]
[]
[null,null,9.245,9.401,9.358,9.326]

{"sheet":"Water","index":12,"n_rows":62,"n_cols":9,"rows_kept":62,"cut":false,"hidden":false,"merged":[[14,0,15,1],[16,0,17,1],[18,0,19,1],[5,0,6,8],[7,0,8,8],[9,0,10,8],[12,0,12,8],[13,0,13,1],[13,2,13,8],[14,2,15,8],[16,2,17,8],[18,2,19,8],[21,0,21,8],[22,0,22,2],[22,3,22,4],[23,0,23,2],[23,3,23,4],[27,0,27,2],[28,0,28,2],[28,3,28,4],[29,0,29,2],[29,3,29,4],[24,0,24,2],[24,3,24,4],[25,0,25,2],[25,3,25,4],[26,0,26,2],[26,3,26,4],[27,3,27,4]]}
[{"$f":"+'Cover Page'!$B$29","v":"Annual Performance Report 2024"},null,null,null,{"$f":"+'Cover Page'!$B$33","v":"SELCHP"}]
[]
["Emissions to Water"]
[]
["Summary of monitoring undertaken and compliance"]
["Water is only discharged off site to commercial sewer, in accordance with Thames Water's discharge consent requirements. There are no monitoring parameters set our in the permit. Although, monthly aggregate samples are sent for laboratory analysis against the discharge consent parameters."]
[]
[]
[]
[]
[]
[]
["Commentary on any specific events"]
["Date & Event",null,"Description"]
[]
[]
[]
[]
[]
[]
[]
["Emissions to Water / Sewer"]
["Parameter",null,null,"Monitoring Frequency",null,"Limit","Target","Max.","Average"]
[]
[]
[]
[]
[]
[]
[]
[]
[]
[]
[]
[]
[]
[]
[]
[]
[]
[]
[]
[]
[]
[]
[]
[]
[]
[]
[]
[]
[]
[]
[]
[]
[]
[]
[]
[]
[]
[]
[null,null,9.245,9.401,9.358,9.326]

{"sheet":"Air (periodic)","index":13,"n_rows":62,"n_cols":11,"rows_kept":62,"cut":false,"hidden":false,"merged":[[29,3,29,4],[30,3,30,4],[22,3,22,4],[23,3,23,4],[24,3,24,4],[25,3,25,4],[26,3,26,4],[27,3,27,4],[28,3,28,4],[32,3,32,4],[33,3,33,4],[35,0,35,1],[35,3,35,4],[36,0,36,1],[36,3,36,4],[37,0,37,1],[37,3,37,4],[28,0,28,1],[29,0,29,1],[30,0,30,1],[31,0,31,1],[31,3,31,4],[32,0,32,1],[33,0,33,1],[9,10,11,13],[13,10,14,12],[15,10,16,10],[15,11,16,11],[15,12,16,12],[5,0,6,9],[5,10,8,13],[8,0,8,9],[9,2,10,2],[9,3,10,4],[9,5,9,9],[11,3,11,4],[9,0,10,1],[11,0,11,1],[12,0,12,1],[12,3,12,4],[13,0,13,1],[13,3,13,4],[14,3,14,4],[14,0,14,1],[15,0,15,1],[16,0,16,1],[17,0,17,1],[18,0,18,1],[19,0,19,1],[20,0,20,1],[15,3,15,4],[16,3,16,4],[17,3,17,4],[18,3,18,4],[19,3,19,4],[20,3,20,4],[21,3,21,4],[21,0,21,1],[22,0,22,1],[23,0,23,1],[24,0,24,1],[25,0,25,1],[26,0,26,1],[27,0,27,1],[34,0,34,1],[34,3,34,4],[38,0,38,9],[39,0,40,9]]}
[{"$f":"+'Cover Page'!$B$29","v":"Annual Performance Report 2024"},null,null,null,{"$f":"+'Cover Page'!$B$33","v":"SELCHP"}]
[]
["Emissions to Air (periodically monitored)"]
[]
["Summary of monitoring undertaken, standards used and compliance",null,null,null,null,null,null,null,null,null,"Notes:"]
["Bi-Annual monitoring. Standards used as applicable; EN 1948, EN 16911-1 (MID), EN 14792, EN 12619:2013, EN 15058, EN 14790, EN ISO 21258, EN 14789, EN 14791, MID 14385, EN 1911, ISO 11338, ISO 15713, EN 14385, EN 13284-1",null,null,null,null,null,null,null,null,null,"Template may require adjustment for any bespoke monitoring requirements of permit - please also check that all default ELV values, reference periods and the stated oxygen reference value match those for your plant, and edit if necessary!"]
[]
[]
["Results of emissions to air that are periodically monitored - oxygen reference 11% "]
["Substance",null,"Ref. Period","Emission Limit Value",null,"Average",null,null,null,null,"User to add additional tables as necessary, depending on whether quarterly or bi-annual reporting is required for the compliance year"]
[null,null,null,null,null,"A1","A2","A3","A4","A5"]
["Hydrogen fluoride",null,"1 hr","1 mg/m3",null,0.031,0.0355]
["Cd and Tl and their compounds",null,"0.5-8hrs","0.02 mg/m3",null,0.0012,0.0011]
["Hg and its compounds",null,"0.5-8hrs","0.02 mg/m3",null,4.55E-4,0.0014]
["Sb, As, Pb, Cr, Co, Cu, Mn, Ni, V and their compounds",null,"0.5-8hrs","0.3 mg/m3",null,0.0275,0.0175]
["Dioxins & Furans (I-TEQ)",null,"6-8hrs","0.06 ng/m3",null,0.0141,0.05555]
["PCBs (WHO-TEQ Humans / Mammals)",null,"6-8hrs","None set ng/m3",null,0.001975,0.006648]
["PCBs (WHO-TEQ Fish)",null,"6-8hrs","None set ng/m3",null,9.5E-5,3.03E-4]
["PCBs (WHO-TEQ Birds)",null,"6-8hrs","None set ng/m3",null,0.00419,0.0109855]
["Dioxins & Furans (WHO-TEQ Humans / Mammals)",null,"6-8hrs","None set ng/m3",null,0.0135,0.0565]
["Dioxins & Furans (WHO-TEQ Fish)",null,"6-8hrs","None set ng/m3",null,0.06725,0.0568]
["Dioxins & Furans (WHO-TEQ Birds)",null,"6-8hrs","None set ng/m3",null,0.0218,0.07925]
["Anthanthrene",null,"6-8hrs","None set µg/m3",null,0.0017,0.0017]
["Benzo(a)anthracene",null,"6-8hrs","None set µg/m3",null,0.0017,0.003]
["Benzo(a)pyrene",null,"6-8hrs","None set µg/m3",null,0.0017,0.0017]
["Benzo(b)fluoranthene",null,"6-8hrs","None set µg/m3",null,0.0017,0.0017]
["Benzo(b)naptho(2,1-d) thiophene",null,"6-8hrs","None set µg/m3",null,0.0017,0.0017]
["Benzo(c)phenanthrene",null,"6-8hrs","None set µg/m3",null,0.0017,0.0017]
["Benzo(ghi)perylene",null,"6-8hrs","None set µg/m3",null,0.0017,0.0032]
["Benzo(k)fluoranthene",null,"6-8hrs","None set µg/m3",null,0.0017,0.0017]
["Cholanthrene",null,"6-8hrs","None set µg/m3",null,0.0017,0.0017]
["Chrysene",null,"6-8hrs","None set µg/m3",null,0.0019,0.0038]
["Cyclopenta(cd)pyrene",null,"6-8hrs","None set µg/m3",null,0.0017,0.0017]
["Dibenzo(ai)pyrene",null,"6-8hrs","None set µg/m3",null,0.0017,0.0017]
["Dibenzo(ah)anthracene",null,"6-8hrs","None set µg/m3",null,0.0017,0.0017]
["Fluoranthene",null,"6-8hrs","None set µg/m3",null,0.0252,0.036]
["Indeno(123-cd) pyrene",null,"6-8hrs","None set µg/m3",null,0.0017,0.0017]
["Naphthalene",null,"6-8hrs","None set µg/m3",null,0.1687,0.1238]
["Comments :"]
[]
[]
[]
[]
[]
[]
[]
[]
[]
[]
[]
[]
[]
[]
[]
[]
[]
[]
[]
[]
[]
[]
[null,null,9.245,9.401,9.358,9.326]

{"sheet":"Air (CEMS)","index":14,"n_rows":62,"n_cols":14,"rows_kept":62,"cut":false,"hidden":false,"merged":[[11,5,11,6],[11,7,11,8],[11,9,11,10],[11,11,11,12],[12,13,13,15],[14,13,15,13],[14,14,15,14],[14,15,15,15],[13,0,14,0],[26,0,26,12],[28,0,29,12],[5,0,6,12],[7,0,8,12],[10,0,10,12],[11,0,12,0],[11,1,12,1],[11,2,12,2],[11,3,11,4]]}
[{"$f":"+'Cover Page'!$B$29","v":"Annual Performance Report 2024"},null,null,null,null,null,null,null,{"$f":"+'Cover Page'!$B$33","v":"SELCHP"}]
[]
["Emissions to Air (continuously monitored)"]
[null,null,null,null,null,null,null,null,null,null,null,null,null,"Notes:"]
["Summary of monitoring undertaken, standards used and compliance",null,null,null,null,null,null,null,null,null,null,null,null,"Template may require adjustment for any bespoke monitoring requirements of permit"]
["Four MCERT cretified CEMS have been installed at the base of the Chimeney. Two duty, one for each combustion line and two standby for each combustion line. Extractive sampling heated lines smple the flues gases. Instuments; MIR-FT, FID, in flue electrified probe",null,null,null,null,null,null,null,null,null,null,null,null,"Please check that all default ELV values match those for your plant and edit if necessary!"]
[null,null,null,null,null,null,null,null,null,null,null,null,null,"Report to 1 decimal place"]
[]
[]
[]
["Results of emissions to air that are continuously monitored (maximum and average values for each line) - oxygen reference 11%"]
["Substance","Reference Period","Emission Limit Value","A1",null,"A2",null,"A3",null,"A4",null,"A5"]
[null,null,null,"Max.","Avg.","Max.","Avg.","Max.","Avg.","Max.","Avg.","Max.","Avg."]
["Oxides of nitrogen","Daily mean","180 mg/m3 ",178.1,169.14,176.04,166.35]
[null,"½ hourly mean","400 mg/m3 ",252.34,169.05,269.64,166.19]
["Particulates","Daily mean","5 mg/m3",3.5,1.49,3.43,1.5]
[null,"½ hourly mean","30 mg/m3 ",13.08,1.71,16.74,1.72]
["Total Organic Carbon ","Daily mean","10 mg/m3 ",1.15,0.7,1.64,0.55]
[null,"½ hourly mean","20 mg/m3 ",10.99,0.7,19.61,0.56]
["Hydrogen chloride ","Daily mean","8 mg/m3 ",6.88,5.17,6.99,5.16]
[null,"½ hourly mean","60 mg/m3 ",34.42,5.19,23.78,5.18]
["Sulphur dioxide","Daily mean","40 mg/m3 ",22.39,10.54,22.41,11.98]
[null,"½ hourly mean","200 mg/m3 ",83.43,10.56,122.22,11.96]
["Carbon monoxide ","Daily mean","50 mg/m3 ",22.16,8.74,21.22,3.96]
[null,"95%ile 10-min avg *","150 mg/m3 *",83.89,51.55,34.54,18.11]
[" Ammonia","Daily mean","15 mg/m3 ",12.9,6.98,11.14,3.82]
["* = delete as appropriate, depending on whether your plant has half-hourly or 10-min CO ELVs\n"]
["Comments :"]
[]
[]
[]
[]
[]
[]
[]
[]
[]
[]
[]
[]
[]
[]
[]
[]
[]
[]
[]
[]
[]
[]
[]
[]
[]
[]
[]
[]
[]
[]
[]
[]
[]
[null,null,9.245,9.401,9.358,9.326]

{"sheet":"HCl","index":15,"n_rows":79,"n_cols":17,"rows_kept":79,"cut":false,"hidden":false,"merged":[[6,9,18,9],[21,9,33,9],[36,9,48,9],[47,0,47,6],[48,0,51,6],[51,9,63,9],[66,9,78,9],[3,16,7,18],[4,1,4,3],[4,4,4,6],[4,9,4,14],[9,16,11,18],[12,16,15,18],[18,4,18,6]]}
[{"$f":"+'Cover Page'!$B$29","v":"Annual Performance Report 2024"},null,null,null,{"$f":"+'Cover Page'!$B$33","v":"SELCHP"}]
[]
["Monitoring of Hydrogen Chloride emissions",null,null,"Whole Installation",null,null,"See  Notes in Cell Q3",null,null,{"$f":"+A3","v":"Monitoring of Hydrogen Chloride emissions"},null,null,null,"Per Combustion Line",null,null,"Notes:"]
[null,null,null,null,null,null,null,null,null,null,null,null,null,null,null,null,"User to add logic to complete Whole installation, Table A5:G18. From the data in Per Combustion Line, Table J6:O79, subject to No. of lines installed"]
[{"$f":"+'Cover Page'!C39","v":2024},"1/2 Hourly Reference Periods",null,null,"Daily Reference Periods"]
["mg/Nm3","1/2 hourly HCl ELV","Monthly mean of half-hourly averages","Highest half- hourly average","Daily HCl ELV","Monthly mean of  daily averages","Highest daily average",null,null,{"$f":"+A5","v":2024},"mg/Nm3","Monthly mean of half-hourly averages","Highest half- hourly average","Monthly mean of  daily averages","Highest daily average"]
["Jan",60.0,5.12,15.5,8.0,5.12,6.67,null,null,"A1","Jan",4.89,12.68,4.89,5.97]
["Feb",60.0,5.1,23.44,8.0,5.11,6.48,null,null,null,"Feb",4.76,21.02,4.77,5.97]
["Mar",60.0,4.39,21.93,8.0,4.39,6.0,null,null,null,"Mar",4.83,15.25,4.82,6.0,null,"Whole Installation table A5:G18:"]
["Apr",60.0,5.34,23.78,8.0,5.37,6.7,null,null,null,"Apr",5.39,21.06,5.46,6.7,null,"Mean: for 1/2 hourly and daily periods calculate mean of values across all operational combustion lines for the month"]
["May",60.0,5.62,18.85,8.0,5.62,6.83,null,null,null,"May",5.85,17.23,5.84,6.83]
["Jun",60.0,5.43,20.83,8.0,5.46,6.44,null,null,null,"Jun",5.51,15.74,5.55,6.44]
["Jul",60.0,4.76,15.09,8.0,4.79,5.91,null,null,null,"Jul",5.02,15.09,5.02,5.91,null,"Maximum: for 1/2 hourly and daily periods use the highest value across all operational combustion lines for the month"]
["Aug",60.0,5.32,21.8,8.0,5.32,6.99,null,null,null,"Aug",5.18,18.24,5.18,6.09]
["Sep",60.0,5.61,34.42,8.0,5.63,6.88,null,null,null,"Sep",5.45,34.42,5.48,6.88]
["Oct",60.0,5.07,15.39,8.0,5.09,6.14,null,null,null,"Oct",5.09,15.39,5.09,6.05]
["Nov",60.0,5.13,17.29,8.0,5.13,6.62,null,null,null,"Nov",4.93,15.3,4.92,6.62]
["Dec",60.0,5.16,15.29,8.0,5.17,6.46,null,null,null,"Dec",5.02,12.12,5.01,6.03]
[null,null,null,null,null,null,null,null,null,null,"Annual",{"$f":"AVERAGE(L7:L18)","v":5.16},{"$f":"MAX(M7:M18)","v":34.42},{"$f":"AVERAGE(N7:N18)","v":5.169166667},{"$f":"MAX(O7:O18)","v":6.88}]
[]
[null,null,null,null,null,null,null,null,null,{"$f":"+A5","v":2024},"mg/Nm3","Monthly mean of half-hourly averages","Highest half- hourly average","Monthly mean of  daily averages","Highest daily average"]
[null,null,null,null,null,null,null,null,null,"A2","Jan",5.35,15.5,5.35,6.67]
[null,null,null,null,null,null,null,null,null,null,"Feb",5.46,23.44,5.49,6.48]
[null,null,null,null,null,null,null,null,null,null,"Mar",3.98,21.93,3.98,5.89]
[null,null,null,null,null,null,null,null,null,null,"Apr",5.29,23.78,5.28,6.42]
[null,null,null,null,null,null,null,null,null,null,"May",5.39,18.85,5.39,6.56]
[null,null,null,null,null,null,null,null,null,null,"Jun",5.39,20.83,5.4,6.34]
[null,null,null,null,null,null,null,null,null,null,"Jul",4.33,10.54,4.42,5.56]
[null,null,null,null,null,null,null,null,null,null,"Aug",5.45,21.8,5.45,6.99]
[null,null,null,null,null,null,null,null,null,null,"Sep",5.76,16.28,5.76,6.69]
[null,null,null,null,null,null,null,null,null,null,"Oct",5.06,14.05,5.08,6.14]
[null,null,null,null,null,null,null,null,null,null,"Nov",5.34,17.29,5.34,6.6]
[null,null,null,null,null,null,null,null,null,null,"Dec",5.32,15.29,5.36,6.46]
[null,null,null,null,null,null,null,null,null,null,"Annual",{"$f":"AVERAGE(L22:L33)","v":5.176666667},{"$f":"MAX(M22:M33)","v":23.78},{"$f":"AVERAGE(N22:N33)","v":5.191666667},{"$f":"MAX(O22:O33)","v":6.99}]
[]
[null,null,null,null,null,null,null,null,null,{"$f":"+A5","v":2024},"mg/Nm3","Monthly mean of half-hourly averages","Highest half- hourly average","Monthly mean of  daily averages","Highest daily average"]
[null,null,null,null,null,null,null,null,null,"A3","Jan"]
[null,null,null,null,null,null,null,null,null,null,"Feb"]
[null,null,null,null,null,null,null,null,null,null,"Mar"]
[null,null,null,null,null,null,null,null,null,null,"Apr"]
[null,null,null,null,null,null,null,null,null,null,"May"]
[null,null,null,null,null,null,null,null,null,null,"Jun"]
[null,null,null,null,null,null,null,null,null,null,"Jul"]
[null,null,null,null,null,null,null,null,null,null,"Aug"]
[null,null,null,null,null,null,null,null,null,null,"Sep"]
[null,null,null,null,null,null,null,null,null,null,"Oct"]
[null,null,null,null,null,null,null,null,null,null,"Nov"]
["Comments :",null,null,null,null,null,null,null,null,null,"Dec"]
[null,null,null,null,null,null,null,null,null,null,"Annual",{"$f":"AVERAGE(L37:L48)","v":"#DIV/0!"},{"$f":"MAX(M37:M48)","v":0},{"$f":"AVERAGE(N37:N48)","v":"#DIV/0!"},{"$f":"MAX(O37:O48)","v":0}]
[]
[null,null,null,null,null,null,null,null,null,{"$f":"+A5","v":2024},"mg/Nm3","Monthly mean of half-hourly averages","Highest half- hourly average","Monthly mean of  daily averages","Highest daily average"]
[null,null,null,null,null,null,null,null,null,"A4","Jan"]
[null,null,null,null,null,null,null,null,null,null,"Feb"]
[null,null,null,null,null,null,null,null,null,null,"Mar"]
[null,null,null,null,null,null,null,null,null,null,"Apr"]
[null,null,null,null,null,null,null,null,null,null,"May"]
[null,null,null,null,null,null,null,null,null,null,"Jun"]
[null,null,null,null,null,null,null,null,null,null,"Jul"]
[null,null,null,null,null,null,null,null,null,null,"Aug"]
[null,null,null,null,null,null,null,null,null,null,"Sep"]
[null,null,null,null,null,null,null,null,null,null,"Oct"]
[null,null,9.245,9.401,9.358,9.326,null,null,null,null,"Nov"]
[null,null,null,null,null,null,null,null,null,null,"Dec"]
[null,null,null,null,null,null,null,null,null,null,"Annual",{"$f":"AVERAGE(L52:L63)","v":"#DIV/0!"},{"$f":"MAX(M52:M63)","v":0},{"$f":"AVERAGE(N52:N63)","v":"#DIV/0!"},{"$f":"MAX(O52:O63)","v":0}]
[]
[null,null,null,null,null,null,null,null,null,{"$f":"+A5","v":2024},"mg/Nm3","Monthly mean of half-hourly averages","Highest half- hourly average","Monthly mean of  daily averages","Highest daily average"]
[null,null,null,null,null,null,null,null,null,"A5","Jan"]
[null,null,null,null,null,null,null,null,null,null,"Feb"]
[null,null,null,null,null,null,null,null,null,null,"Mar"]
[null,null,null,null,null,null,null,null,null,null,"Apr"]
[null,null,null,null,null,null,null,null,null,null,"May"]
[null,null,null,null,null,null,null,null,null,null,"Jun"]
[null,null,null,null,null,null,null,null,null,null,"Jul"]
[null,null,null,null,null,null,null,null,null,null,"Aug"]
[null,null,null,null,null,null,null,null,null,null,"Sep"]
[null,null,null,null,null,null,null,null,null,null,"Oct"]
[null,null,null,null,null,null,null,null,null,null,"Nov"]
[null,null,null,null,null,null,null,null,null,null,"Dec"]
[null,null,null,null,null,null,null,null,null,null,"Annual",{"$f":"AVERAGE(L67:L78)","v":"#DIV/0!"},{"$f":"MAX(M67:M78)","v":0},{"$f":"AVERAGE(N67:N78)","v":"#DIV/0!"},{"$f":"MAX(O67:O78)","v":0}]

{"sheet":"SO2","index":16,"n_rows":79,"n_cols":17,"rows_kept":79,"cut":false,"hidden":false,"merged":[[6,9,18,9],[21,9,33,9],[36,9,48,9],[47,0,47,6],[48,0,51,6],[51,9,63,9],[66,9,78,9],[3,16,7,18],[4,1,4,3],[4,4,4,6],[4,9,4,14],[9,16,11,18],[12,16,15,18],[18,4,18,6]]}
[{"$f":"+'Cover Page'!$B$29","v":"Annual Performance Report 2024"},null,null,null,{"$f":"+'Cover Page'!$B$33","v":"SELCHP"}]
[]
["Monitoring of Sulphur dioxide emissions",null,null,"Whole Installation",null,null,"See  Notes in Cell Q3",null,null,{"$f":"+A3","v":"Monitoring of Sulphur dioxide emissions"},null,null,null,"Per Combustion Line",null,null,"Notes:"]
[null,null,null,null,null,null,null,null,null,null,null,null,null,null,null,null,"User to add logic to complete Whole installation, Table A5:G18. From the data in Per Combustion Line, Table J6:O79, subject to No. of lines installed"]
[{"$f":"+'Cover Page'!C39","v":2024},"1/2 Hourly Reference Periods",null,null,"Daily Reference Periods"]
["mg/Nm3","1/2 hourly SO2 ELV","Monthly mean of half-hourly averages","Highest half- hourly average","Daily SO2 ELV","Monthly mean of  daily averages","Highest daily average",null,null,{"$f":"+A5","v":2024},"mg/Nm3","Monthly mean of half-hourly averages","Highest half- hourly average","Monthly mean of  daily averages","Highest daily average"]
["Jan",200.0,13.44,42.05,40.0,13.44,19.41,null,null,"A1","Jan",16.31,42.05,16.31,19.41]
["Feb",200.0,13.98,83.43,40.0,13.92,19.86,null,null,null,"Feb",17.95,83.43,17.75,19.86]
["Mar",200.0,16.29,73.12,40.0,16.27,22.39,null,null,null,"Mar",17.63,49.97,17.62,22.39,null,"Whole Installation table A5:G18:"]
["Apr",200.0,8.33,44.28,40.0,8.35,18.62,null,null,null,"Apr",7.27,32.08,7.26,18.62,null,"Mean: for 1/2 hourly and daily periods calculate mean of values across all operational combustion lines for the month"]
["May",200.0,10.04,83.05,40.0,10.04,15.21,null,null,null,"May",7.83,83.05,7.83,11.94]
["Jun",200.0,9.99,122.22,40.0,9.94,14.91,null,null,null,"Jun",7.97,60.6,7.95,12.87]
["Jul",200.0,8.82,50.42,40.0,8.89,22.41,null,null,null,"Jul",6.07,39.09,5.89,9.8,null,"Maximum: for 1/2 hourly and daily periods use the highest value across all operational combustion lines for the month"]
["Aug",200.0,9.16,51.44,40.0,9.11,17.19,null,null,null,"Aug",5.13,34.16,5.23,7.71]
["Sep",200.0,8.87,57.35,40.0,8.94,14.66,null,null,null,"Sep",5.37,57.35,5.44,9.9]
["Oct",200.0,10.38,76.53,40.0,10.42,17.73,null,null,null,"Oct",8.98,41.0,8.98,17.73]
["Nov",200.0,11.02,46.03,40.0,11.02,19.0,null,null,null,"Nov",10.84,46.03,10.84,19.0]
["Dec",200.0,14.66,40.95,40.0,14.65,19.94,null,null,null,"Dec",15.34,40.95,15.34,19.94]
[null,null,null,null,null,null,null,null,null,null,"Annual",{"$f":"AVERAGE(L7:L18)","v":10.5575},{"$f":"MAX(M7:M18)","v":83.43},{"$f":"AVERAGE(N7:N18)","v":10.53666667},{"$f":"MAX(O7:O18)","v":22.39}]
[]
[null,null,null,null,null,null,null,null,null,{"$f":"+A5","v":2024},"mg/Nm3","Monthly mean of half-hourly averages","Highest half- hourly average","Monthly mean of  daily averages","Highest daily average"]
[null,null,null,null,null,null,null,null,null,"A2","Jan",10.58,33.36,10.58,13.71]
[null,null,null,null,null,null,null,null,null,null,"Feb",9.73,72.17,9.79,16.07]
[null,null,null,null,null,null,null,null,null,null,"Mar",15.03,73.12,15.02,21.35]
[null,null,null,null,null,null,null,null,null,null,"Apr",9.4,44.28,9.4,13.43]
[null,null,null,null,null,null,null,null,null,null,"May",12.25,54.53,12.25,15.21]
[null,null,null,null,null,null,null,null,null,null,"Jun",11.13,122.22,11.08,14.91]
[null,null,null,null,null,null,null,null,null,null,"Jul",13.42,50.42,13.69,22.41]
[null,null,null,null,null,null,null,null,null,null,"Aug",12.85,51.44,12.71,17.19]
[null,null,null,null,null,null,null,null,null,null,"Sep",12.09,33.66,12.09,14.66]
[null,null,null,null,null,null,null,null,null,null,"Oct",11.93,76.53,12.07,17.67]
[null,null,null,null,null,null,null,null,null,null,"Nov",11.2,36.82,11.2,15.39]
[null,null,null,null,null,null,null,null,null,null,"Dec",13.9,39.18,13.83,17.86]
[null,null,null,null,null,null,null,null,null,null,"Annual",{"$f":"AVERAGE(L22:L33)","v":11.95916667},{"$f":"MAX(M22:M33)","v":122.22},{"$f":"AVERAGE(N22:N33)","v":11.97583333},{"$f":"MAX(O22:O33)","v":22.41}]
[]
[null,null,null,null,null,null,null,null,null,{"$f":"+A5","v":2024},"mg/Nm3","Monthly mean of half-hourly averages","Highest half- hourly average","Monthly mean of  daily averages","Highest daily average"]
[null,null,null,null,null,null,null,null,null,"A3","Jan"]
[null,null,null,null,null,null,null,null,null,null,"Feb"]
[null,null,null,null,null,null,null,null,null,null,"Mar"]
[null,null,null,null,null,null,null,null,null,null,"Apr"]
[null,null,null,null,null,null,null,null,null,null,"May"]
[null,null,null,null,null,null,null,null,null,null,"Jun"]
[null,null,null,null,null,null,null,null,null,null,"Jul"]
[null,null,null,null,null,null,null,null,null,null,"Aug"]
[null,null,null,null,null,null,null,null,null,null,"Sep"]
[null,null,null,null,null,null,null,null,null,null,"Oct"]
[null,null,null,null,null,null,null,null,null,null,"Nov"]
["Comments :",null,null,null,null,null,null,null,null,null,"Dec"]
[null,null,null,null,null,null,null,null,null,null,"Annual",{"$f":"AVERAGE(L37:L48)","v":"#DIV/0!"},{"$f":"MAX(M37:M48)","v":0},{"$f":"AVERAGE(N37:N48)","v":"#DIV/0!"},{"$f":"MAX(O37:O48)","v":0}]
[]
[null,null,null,null,null,null,null,null,null,{"$f":"+A5","v":2024},"mg/Nm3","Monthly mean of half-hourly averages","Highest half- hourly average","Monthly mean of  daily averages","Highest daily average"]
[null,null,null,null,null,null,null,null,null,"A4","Jan"]
[null,null,null,null,null,null,null,null,null,null,"Feb"]
[null,null,null,null,null,null,null,null,null,null,"Mar"]
[null,null,null,null,null,null,null,null,null,null,"Apr"]
[null,null,null,null,null,null,null,null,null,null,"May"]
[null,null,null,null,null,null,null,null,null,null,"Jun"]
[null,null,null,null,null,null,null,null,null,null,"Jul"]
[null,null,null,null,null,null,null,null,null,null,"Aug"]
[null,null,null,null,null,null,null,null,null,null,"Sep"]
[null,null,null,null,null,null,null,null,null,null,"Oct"]
[null,null,9.245,9.401,9.358,9.326,null,null,null,null,"Nov"]
[null,null,null,null,null,null,null,null,null,null,"Dec"]
[null,null,null,null,null,null,null,null,null,null,"Annual",{"$f":"AVERAGE(L52:L63)","v":"#DIV/0!"},{"$f":"MAX(M52:M63)","v":0},{"$f":"AVERAGE(N52:N63)","v":"#DIV/0!"},{"$f":"MAX(O52:O63)","v":0}]
[]
[null,null,null,null,null,null,null,null,null,{"$f":"+A5","v":2024},"mg/Nm3","Monthly mean of half-hourly averages","Highest half- hourly average","Monthly mean of  daily averages","Highest daily average"]
[null,null,null,null,null,null,null,null,null,"A5","Jan"]
[null,null,null,null,null,null,null,null,null,null,"Feb"]
[null,null,null,null,null,null,null,null,null,null,"Mar"]
[null,null,null,null,null,null,null,null,null,null,"Apr"]
[null,null,null,null,null,null,null,null,null,null,"May"]
[null,null,null,null,null,null,null,null,null,null,"Jun"]
[null,null,null,null,null,null,null,null,null,null,"Jul"]
[null,null,null,null,null,null,null,null,null,null,"Aug"]
[null,null,null,null,null,null,null,null,null,null,"Sep"]
[null,null,null,null,null,null,null,null,null,null,"Oct"]
[null,null,null,null,null,null,null,null,null,null,"Nov"]
[null,null,null,null,null,null,null,null,null,null,"Dec"]
[null,null,null,null,null,null,null,null,null,null,"Annual",{"$f":"AVERAGE(L67:L78)","v":"#DIV/0!"},{"$f":"MAX(M67:M78)","v":0},{"$f":"AVERAGE(N67:N78)","v":"#DIV/0!"},{"$f":"MAX(O67:O78)","v":0}]

{"sheet":"NOx","index":17,"n_rows":79,"n_cols":17,"rows_kept":79,"cut":false,"hidden":false,"merged":[[6,9,18,9],[21,9,33,9],[36,9,48,9],[47,0,47,6],[48,0,51,6],[51,9,63,9],[66,9,78,9],[3,16,7,18],[4,1,4,3],[4,4,4,6],[4,9,4,14],[9,16,11,18],[12,16,15,18],[18,4,18,6]]}
[{"$f":"+'Cover Page'!$B$29","v":"Annual Performance Report 2024"},null,null,null,{"$f":"+'Cover Page'!$B$33","v":"SELCHP"}]
[]
["Monitoring of Oxides of Nitrogen emissions",null,null,"Whole Installation",null,null,"See  Notes in Cell Q3",null,null,{"$f":"+A3","v":"Monitoring of Oxides of Nitrogen emissions"},null,null,null,"Per Combustion Line",null,null,"Notes:"]
[null,null,null,null,null,null,null,null,null,null,null,null,null,null,null,null,"User to add logic to complete Whole installation, Table A5:G18. From the data in Per Combustion Line, Table J6:O79, subject to No. of lines installed"]
[{"$f":"+'Cover Page'!C39","v":2024},"1/2 Hourly Reference Periods",null,null,"Daily Reference Periods"]
["mg/Nm3","1/2 hourly NOx ELV","Monthly mean of half-hourly averages","Highest half- hourly average","Daily NOx ELV","Monthly mean of  daily averages","Highest daily average",null,null,{"$f":"+A5","v":2024},"mg/Nm3","Monthly mean of half-hourly averages","Highest half- hourly average","Monthly mean of  daily averages","Highest daily average"]
["Jan",400.0,168.24,228.86,180.0,168.23,175.98,null,null,"A1","Jan",170.7,228.86,170.7,175.98]
["Feb",400.0,168.81,249.62,180.0,168.94,177.34,null,null,null,"Feb",169.91,249.62,170.0,177.34]
["Mar",400.0,166.85,229.28,180.0,166.87,175.61,null,null,null,"Mar",168.97,229.28,169.01,175.36,null,"Whole Installation table A5:G18:"]
["Apr",400.0,169.89,269.64,180.0,170.07,176.49,null,null,null,"Apr",171.06,223.42,171.53,176.49,null,"Mean: for 1/2 hourly and daily periods calculate mean of values across all operational combustion lines for the month"]
["May",400.0,170.46,238.71,180.0,170.46,178.1,null,null,null,"May",171.76,238.71,171.76,178.1]
["Jun",400.0,165.99,219.46,180.0,166.55,176.04,null,null,null,"Jun",167.91,219.46,168.25,175.3]
["Jul",400.0,168.42,248.09,180.0,168.38,175.12,null,null,null,"Jul",169.12,248.09,168.95,175.12,null,"Maximum: for 1/2 hourly and daily periods use the highest value across all operational combustion lines for the month"]
["Aug",400.0,166.85,236.14,180.0,167.15,175.09,null,null,null,"Aug",169.53,236.14,169.73,175.09]
["Sep",400.0,166.91,242.68,180.0,166.96,175.72,null,null,null,"Sep",168.03,236.2,168.18,174.31]
["Oct",400.0,163.86,252.34,180.0,164.03,172.41,null,null,null,"Oct",166.19,252.34,166.19,172.41]
["Nov",400.0,167.15,248.51,180.0,167.15,176.6,null,null,null,"Nov",166.71,248.51,166.71,176.6]
["Dec",400.0,167.76,248.83,180.0,167.96,178.01,null,null,null,"Dec",168.68,248.83,168.67,178.01]
[null,null,null,null,null,null,null,null,null,null,"Annual",{"$f":"AVERAGE(L7:L18)","v":169.0475},{"$f":"MAX(M7:M18)","v":252.34},{"$f":"AVERAGE(N7:N18)","v":169.14},{"$f":"MAX(O7:O18)","v":178.1}]
[]
[null,null,null,null,null,null,null,null,null,{"$f":"+A5","v":2024},"mg/Nm3","Monthly mean of half-hourly averages","Highest half- hourly average","Monthly mean of  daily averages","Highest daily average"]
[null,null,null,null,null,null,null,null,null,"A2","Jan",165.77,212.09,165.77,172.31]
[null,null,null,null,null,null,null,null,null,null,"Feb",167.64,226.08,167.79,173.99]
[null,null,null,null,null,null,null,null,null,null,"Mar",164.86,223.59,164.87,175.61]
[null,null,null,null,null,null,null,null,null,null,"Apr",168.72,269.64,168.66,174.81]
[null,null,null,null,null,null,null,null,null,null,"May",169.17,229.91,169.17,175.06]
[null,null,null,null,null,null,null,null,null,null,"Jun",164.9,214.8,165.57,176.04]
[null,null,null,null,null,null,null,null,null,null,"Jul",167.25,201.16,167.46,175.05]
[null,null,null,null,null,null,null,null,null,null,"Aug",164.39,227.76,164.76,171.62]
[null,null,null,null,null,null,null,null,null,null,"Sep",165.86,242.68,165.86,175.72]
[null,null,null,null,null,null,null,null,null,null,"Oct",161.3,241.91,161.55,171.95]
[null,null,null,null,null,null,null,null,null,null,"Nov",167.59,230.94,167.59,174.64]
[null,null,null,null,null,null,null,null,null,null,"Dec",166.72,228.24,167.11,175.15]
[null,null,null,null,null,null,null,null,null,null,"Annual",{"$f":"AVERAGE(L22:L33)","v":166.1808333},{"$f":"MAX(M22:M33)","v":269.64},{"$f":"AVERAGE(N22:N33)","v":166.3466667},{"$f":"MAX(O22:O33)","v":176.04}]
[]
[null,null,null,null,null,null,null,null,null,{"$f":"+A5","v":2024},"mg/Nm3","Monthly mean of half-hourly averages","Highest half- hourly average","Monthly mean of  daily averages","Highest daily average"]
[null,null,null,null,null,null,null,null,null,"A3","Jan"]
[null,null,null,null,null,null,null,null,null,null,"Feb"]
[null,null,null,null,null,null,null,null,null,null,"Mar"]
[null,null,null,null,null,null,null,null,null,null,"Apr"]
[null,null,null,null,null,null,null,null,null,null,"May"]
[null,null,null,null,null,null,null,null,null,null,"Jun"]
[null,null,null,null,null,null,null,null,null,null,"Jul"]
[null,null,null,null,null,null,null,null,null,null,"Aug"]
[null,null,null,null,null,null,null,null,null,null,"Sep"]
[null,null,null,null,null,null,null,null,null,null,"Oct"]
[null,null,null,null,null,null,null,null,null,null,"Nov"]
["Comments :",null,null,null,null,null,null,null,null,null,"Dec"]
[null,null,null,null,null,null,null,null,null,null,"Annual",{"$f":"AVERAGE(L37:L48)","v":"#DIV/0!"},{"$f":"MAX(M37:M48)","v":0},{"$f":"AVERAGE(N37:N48)","v":"#DIV/0!"},{"$f":"MAX(O37:O48)","v":0}]
[]
[null,null,null,null,null,null,null,null,null,{"$f":"+A5","v":2024},"mg/Nm3","Monthly mean of half-hourly averages","Highest half- hourly average","Monthly mean of  daily averages","Highest daily average"]
[null,null,null,null,null,null,null,null,null,"A4","Jan"]
[null,null,null,null,null,null,null,null,null,null,"Feb"]
[null,null,null,null,null,null,null,null,null,null,"Mar"]
[null,null,null,null,null,null,null,null,null,null,"Apr"]
[null,null,null,null,null,null,null,null,null,null,"May"]
[null,null,null,null,null,null,null,null,null,null,"Jun"]
[null,null,null,null,null,null,null,null,null,null,"Jul"]
[null,null,null,null,null,null,null,null,null,null,"Aug"]
[null,null,null,null,null,null,null,null,null,null,"Sep"]
[null,null,null,null,null,null,null,null,null,null,"Oct"]
[null,null,9.245,9.401,9.358,9.326,null,null,null,null,"Nov"]
[null,null,null,null,null,null,null,null,null,null,"Dec"]
[null,null,null,null,null,null,null,null,null,null,"Annual",{"$f":"AVERAGE(L52:L63)","v":"#DIV/0!"},{"$f":"MAX(M52:M63)","v":0},{"$f":"AVERAGE(N52:N63)","v":"#DIV/0!"},{"$f":"MAX(O52:O63)","v":0}]
[]
[null,null,null,null,null,null,null,null,null,{"$f":"+A5","v":2024},"mg/Nm3","Monthly mean of half-hourly averages","Highest half- hourly average","Monthly mean of  daily averages","Highest daily average"]
[null,null,null,null,null,null,null,null,null,"A5","Jan"]
[null,null,null,null,null,null,null,null,null,null,"Feb"]
[null,null,null,null,null,null,null,null,null,null,"Mar"]
[null,null,null,null,null,null,null,null,null,null,"Apr"]
[null,null,null,null,null,null,null,null,null,null,"May"]
[null,null,null,null,null,null,null,null,null,null,"Jun"]
[null,null,null,null,null,null,null,null,null,null,"Jul"]
[null,null,null,null,null,null,null,null,null,null,"Aug"]
[null,null,null,null,null,null,null,null,null,null,"Sep"]
[null,null,null,null,null,null,null,null,null,null,"Oct"]
[null,null,null,null,null,null,null,null,null,null,"Nov"]
[null,null,null,null,null,null,null,null,null,null,"Dec"]
[null,null,null,null,null,null,null,null,null,null,"Annual",{"$f":"AVERAGE(L67:L78)","v":"#DIV/0!"},{"$f":"MAX(M67:M78)","v":0},{"$f":"AVERAGE(N67:N78)","v":"#DIV/0!"},{"$f":"MAX(O67:O78)","v":0}]

{"sheet":"TOC","index":18,"n_rows":79,"n_cols":17,"rows_kept":79,"cut":false,"hidden":false,"merged":[[21,9,33,9],[36,9,48,9],[47,0,47,6],[48,0,51,6],[51,9,63,9],[66,9,78,9],[3,16,7,18],[4,1,4,3],[4,4,4,6],[4,9,4,14],[6,9,18,9],[9,16,11,18],[12,16,15,18]]}
[{"$f":"+'Cover Page'!$B$29","v":"Annual Performance Report 2024"},null,null,null,{"$f":"+'Cover Page'!$B$33","v":"SELCHP"}]
[]
["Monitoring of Total organic carbon emissions",null,null,"Whole Installation",null,null,"See  Notes in Cell Q3",null,null,{"$f":"+A3","v":"Monitoring of Total organic carbon emissions"},null,null,null,"Per Combustion Line",null,null,"Notes:"]
[null,null,null,null,null,null,null,null,null,null,null,null,null,null,null,null,"User to add logic to complete Whole installation, Table A5:G18. From the data in Per Combustion Line, Table J6:O79, subject to No. of lines installed"]
[{"$f":"+'Cover Page'!C39","v":2024},"1/2 Hourly Reference Periods",null,null,"Daily Reference Periods"]
["mg/Nm3","1/2 hourly TOC ELV","Monthly mean of half-hourly averages","Highest half- hourly average","Daily TOC ELV","Monthly mean of  daily averages","Highest daily average",null,null,{"$f":"+A5","v":2024},"mg/Nm3","Monthly mean of half-hourly averages","Highest half- hourly average","Monthly mean of  daily averages","Highest daily average"]
["Jan",20.0,0.38,7.51,10.0,0.38,0.92,null,null,"A1","Jan",0.73,6.13,0.73,0.92]
["Feb",20.0,0.59,8.01,10.0,0.58,1.64,null,null,null,"Feb",0.75,6.29,0.75,0.85]
["Mar",20.0,0.78,9.43,10.0,0.78,1.17,null,null,null,"Mar",0.72,5.82,0.71,0.95,null,"Whole Installation table A5:G18:"]
["Apr",20.0,0.3,6.54,10.0,0.29,0.85,null,null,null,"Apr",0.51,6.54,0.5,0.85,null,"Mean: for 1/2 hourly and daily periods calculate mean of values across all operational combustion lines for the month"]
["May",20.0,0.6,6.91,10.0,0.6,0.98,null,null,null,"May",0.65,6.32,0.65,0.98]
["Jun",20.0,0.72,19.61,10.0,0.7,1.54,null,null,null,"Jun",0.69,6.52,0.7,0.87]
["Jul",20.0,0.85,10.99,10.0,0.84,1.3,null,null,null,"Jul",0.86,10.99,0.83,1.15,null,"Maximum: for 1/2 hourly and daily periods use the highest value across all operational combustion lines for the month"]
["Aug",20.0,0.77,5.96,10.0,0.75,1.24,null,null,null,"Aug",0.77,5.96,0.76,1.02]
["Sep",20.0,0.67,7.56,10.0,0.67,0.85,null,null,null,"Sep",0.71,5.8,0.7,0.85]
["Oct",20.0,0.59,10.21,10.0,0.58,1.35,null,null,null,"Oct",0.67,5.74,0.67,1.15]
["Nov",20.0,0.68,7.41,10.0,0.68,1.05,null,null,null,"Nov",0.73,7.41,0.73,1.05]
["Dec",20.0,0.62,4.81,10.0,0.62,0.79,null,null,null,"Dec",0.66,4.81,0.66,0.79]
[null,null,null,null,null,null,null,null,null,null,"Annual",{"$f":"AVERAGE(L7:L18)","v":0.7041666667},{"$f":"MAX(M7:M18)","v":10.99},{"$f":"AVERAGE(N7:N18)","v":0.6991666667},{"$f":"MAX(O7:O18)","v":1.15}]
[]
[null,null,null,null,null,null,null,null,null,{"$f":"+A5","v":2024},"mg/Nm3","Monthly mean of half-hourly averages","Highest half- hourly average","Monthly mean of  daily averages","Highest daily average"]
[null,null,null,null,null,null,null,null,null,"A2","Jan",0.04,7.51,0.04,0.35]
[null,null,null,null,null,null,null,null,null,null,"Feb",0.42,8.01,0.41,1.64]
[null,null,null,null,null,null,null,null,null,null,"Mar",0.84,9.43,0.84,1.17]
[null,null,null,null,null,null,null,null,null,null,"Apr",0.09,3.74,0.09,0.76]
[null,null,null,null,null,null,null,null,null,null,"May",0.55,6.91,0.55,0.7]
[null,null,null,null,null,null,null,null,null,null,"Jun",0.74,19.61,0.7,1.54]
[null,null,null,null,null,null,null,null,null,null,"Jul",0.85,7.38,0.86,1.3]
[null,null,null,null,null,null,null,null,null,null,"Aug",0.77,5.95,0.74,1.24]
[null,null,null,null,null,null,null,null,null,null,"Sep",0.64,7.56,0.64,0.74]
[null,null,null,null,null,null,null,null,null,null,"Oct",0.5,10.21,0.48,1.35]
[null,null,null,null,null,null,null,null,null,null,"Nov",0.64,3.71,0.64,0.97]
[null,null,null,null,null,null,null,null,null,null,"Dec",0.58,3.02,0.57,0.66]
[null,null,null,null,null,null,null,null,null,null,"Annual",{"$f":"AVERAGE(L22:L33)","v":0.555},{"$f":"MAX(M22:M33)","v":19.61},{"$f":"AVERAGE(N22:N33)","v":0.5466666667},{"$f":"MAX(O22:O33)","v":1.64}]
[]
[null,null,null,null,null,null,null,null,null,{"$f":"+A5","v":2024},"mg/Nm3","Monthly mean of half-hourly averages","Highest half- hourly average","Monthly mean of  daily averages","Highest daily average"]
[null,null,null,null,null,null,null,null,null,"A3","Jan"]
[null,null,null,null,null,null,null,null,null,null,"Feb"]
[null,null,null,null,null,null,null,null,null,null,"Mar"]
[null,null,null,null,null,null,null,null,null,null,"Apr"]
[null,null,null,null,null,null,null,null,null,null,"May"]
[null,null,null,null,null,null,null,null,null,null,"Jun"]
[null,null,null,null,null,null,null,null,null,null,"Jul"]
[null,null,null,null,null,null,null,null,null,null,"Aug"]
[null,null,null,null,null,null,null,null,null,null,"Sep"]
[null,null,null,null,null,null,null,null,null,null,"Oct"]
[null,null,null,null,null,null,null,null,null,null,"Nov"]
["Comments :",null,null,null,null,null,null,null,null,null,"Dec"]
[null,null,null,null,null,null,null,null,null,null,"Annual",{"$f":"AVERAGE(L37:L48)","v":"#DIV/0!"},{"$f":"MAX(M37:M48)","v":0},{"$f":"AVERAGE(N37:N48)","v":"#DIV/0!"},{"$f":"MAX(O37:O48)","v":0}]
[]
[null,null,null,null,null,null,null,null,null,{"$f":"+A5","v":2024},"mg/Nm3","Monthly mean of half-hourly averages","Highest half- hourly average","Monthly mean of  daily averages","Highest daily average"]
[null,null,null,null,null,null,null,null,null,"A4","Jan"]
[null,null,null,null,null,null,null,null,null,null,"Feb"]
[null,null,null,null,null,null,null,null,null,null,"Mar"]
[null,null,null,null,null,null,null,null,null,null,"Apr"]
[null,null,null,null,null,null,null,null,null,null,"May"]
[null,null,null,null,null,null,null,null,null,null,"Jun"]
[null,null,null,null,null,null,null,null,null,null,"Jul"]
[null,null,null,null,null,null,null,null,null,null,"Aug"]
[null,null,null,null,null,null,null,null,null,null,"Sep"]
[null,null,null,null,null,null,null,null,null,null,"Oct"]
[null,null,9.245,9.401,9.358,9.326,null,null,null,null,"Nov"]
[null,null,null,null,null,null,null,null,null,null,"Dec"]
[null,null,null,null,null,null,null,null,null,null,"Annual",{"$f":"AVERAGE(L52:L63)","v":"#DIV/0!"},{"$f":"MAX(M52:M63)","v":0},{"$f":"AVERAGE(N52:N63)","v":"#DIV/0!"},{"$f":"MAX(O52:O63)","v":0}]
[]
[null,null,null,null,null,null,null,null,null,{"$f":"+A5","v":2024},"mg/Nm3","Monthly mean of half-hourly averages","Highest half- hourly average","Monthly mean of  daily averages","Highest daily average"]
[null,null,null,null,null,null,null,null,null,"A5","Jan"]
[null,null,null,null,null,null,null,null,null,null,"Feb"]
[null,null,null,null,null,null,null,null,null,null,"Mar"]
[null,null,null,null,null,null,null,null,null,null,"Apr"]
[null,null,null,null,null,null,null,null,null,null,"May"]
[null,null,null,null,null,null,null,null,null,null,"Jun"]
[null,null,null,null,null,null,null,null,null,null,"Jul"]
[null,null,null,null,null,null,null,null,null,null,"Aug"]
[null,null,null,null,null,null,null,null,null,null,"Sep"]
[null,null,null,null,null,null,null,null,null,null,"Oct"]
[null,null,null,null,null,null,null,null,null,null,"Nov"]
[null,null,null,null,null,null,null,null,null,null,"Dec"]
[null,null,null,null,null,null,null,null,null,null,"Annual",{"$f":"AVERAGE(L67:L78)","v":"#DIV/0!"},{"$f":"MAX(M67:M78)","v":0},{"$f":"AVERAGE(N67:N78)","v":"#DIV/0!"},{"$f":"MAX(O67:O78)","v":0}]

{"sheet":"Particulates","index":19,"n_rows":79,"n_cols":17,"rows_kept":79,"cut":false,"hidden":false,"merged":[[6,9,18,9],[21,9,33,9],[36,9,48,9],[47,0,47,6],[48,0,51,6],[51,9,63,9],[66,9,78,9],[4,1,4,3],[4,4,4,6],[4,9,4,14],[4,16,8,18],[10,16,12,18],[13,16,16,18],[18,4,18,6]]}
[{"$f":"+'Cover Page'!$B$29","v":"Annual Performance Report 2024"},null,null,null,{"$f":"+'Cover Page'!$B$33","v":"SELCHP"}]
[]
["Monitoring of Particulate matter emissions",null,null,"Whole Installation",null,null,"See  Notes in Cell Q3",null,null,{"$f":"+A3","v":"Monitoring of Particulate matter emissions"},null,null,null,"Per Combustion Line",null,null,"Notes:"]
[]
[{"$f":"+'Cover Page'!C39","v":2024},"1/2 Hourly Reference Periods",null,null,"Daily Reference Periods",null,null,null,null,null,null,null,null,null,null,null,"User to add logic to complete Whole installation, Table A5:G18. From the data in Per Combustion Line, Table J6:O79, subject to No. of lines installed"]
["mg/Nm3","1/2 hourly PM ELV","Monthly mean of half-hourly averages","Highest half- hourly average","Daily PM ELV","Monthly mean of  daily averages","Highest daily average",null,null,{"$f":"+A5","v":2024},"mg/Nm3","Monthly mean of half-hourly averages","Highest half- hourly average","Monthly mean of  daily averages","Highest daily average"]
["Jan",30.0,1.64,8.86,5.0,1.64,2.65,null,null,"A1","Jan",1.72,4.16,1.72,2.53]
["Feb",30.0,1.59,6.39,5.0,1.59,2.23,null,null,null,"Feb",1.54,4.08,1.54,2.23]
["Mar",30.0,1.83,5.92,5.0,1.83,2.87,null,null,null,"Mar",1.66,5.92,1.66,2.87]
["Apr",30.0,1.99,5.26,5.0,1.99,2.71,null,null,null,"Apr",2.01,5.26,2.01,2.71,null,"Whole Installation table A5:G18:"]
["May",30.0,2.08,6.65,5.0,2.08,3.5,null,null,null,"May",2.2,6.65,2.2,3.5,null,"Mean: for 1/2 hourly and daily periods calculate mean of values across all operational combustion lines for the month"]
["Jun",30.0,1.79,13.73,5.0,1.7,3.15,null,null,null,"Jun",2.13,4.54,2.12,3.15]
["Jul",30.0,1.45,13.08,5.0,1.44,3.43,null,null,null,"Jul",1.18,13.08,1.16,3.07]
["Aug",30.0,1.23,5.06,5.0,1.22,2.27,null,null,null,"Aug",0.76,3.36,0.74,1.08,null,"Maximum: for 1/2 hourly and daily periods use the highest value across all operational combustion lines for the month"]
["Sep",30.0,1.21,4.18,5.0,1.22,1.88,null,null,null,"Sep",0.79,2.37,0.8,1.14]
["Oct",30.0,1.52,16.74,5.0,1.53,2.5,null,null,null,"Oct",0.98,2.11,0.99,1.12]
["Nov",30.0,1.4,7.35,5.0,1.4,1.94,null,null,null,"Nov"]
["Dec",30.0,1.58,6.67,5.0,1.59,2.17,null,null,null,"Dec"]
[null,null,null,null,null,null,null,null,null,null,"Annual",{"$f":"AVERAGE(L7:L18)","v":1.497},{"$f":"MAX(M7:M18)","v":13.08},{"$f":"AVERAGE(N7:N18)","v":1.494},{"$f":"MAX(O7:O18)","v":3.5}]
[]
[null,null,null,null,null,null,null,null,null,{"$f":"+A5","v":2024},"mg/Nm3","Monthly mean of half-hourly averages","Highest half- hourly average","Monthly mean of  daily averages","Highest daily average"]
[null,null,null,null,null,null,null,null,null,"A2","Jan",1.57,8.86,1.57,2.65]
[null,null,null,null,null,null,null,null,null,null,"Feb",1.64,6.39,1.64,2.02]
[null,null,null,null,null,null,null,null,null,null,"Mar",1.98,5.52,1.98,2.43]
[null,null,null,null,null,null,null,null,null,null,"Apr",1.96,4.93,1.96,2.37]
[null,null,null,null,null,null,null,null,null,null,"May",1.96,5.47,1.96,3.35]
[null,null,null,null,null,null,null,null,null,null,"Jun",1.59,13.73,1.46,2.05]
[null,null,null,null,null,null,null,null,null,null,"Jul",1.91,7.82,1.9,3.43]
[null,null,null,null,null,null,null,null,null,null,"Aug",1.66,5.06,1.66,2.27]
[null,null,null,null,null,null,null,null,null,null,"Sep",1.6,4.18,1.6,1.88]
[null,null,null,null,null,null,null,null,null,null,"Oct",1.84,16.74,1.84,2.5]
[null,null,null,null,null,null,null,null,null,null,"Nov",1.4,7.35,1.4,1.94]
[null,null,null,null,null,null,null,null,null,null,"Dec",1.58,6.67,1.59,2.17]
[null,null,null,null,null,null,null,null,null,null,"Annual",{"$f":"AVERAGE(L22:L33)","v":1.724166667},{"$f":"MAX(M22:M33)","v":16.74},{"$f":"AVERAGE(N22:N33)","v":1.713333333},{"$f":"MAX(O22:O33)","v":3.43}]
[]
[null,null,null,null,null,null,null,null,null,{"$f":"+A5","v":2024},"mg/Nm3","Monthly mean of half-hourly averages","Highest half- hourly average","Monthly mean of  daily averages","Highest daily average"]
[null,null,null,null,null,null,null,null,null,"A3","Jan"]
[null,null,null,null,null,null,null,null,null,null,"Feb"]
[null,null,null,null,null,null,null,null,null,null,"Mar"]
[null,null,null,null,null,null,null,null,null,null,"Apr"]
[null,null,null,null,null,null,null,null,null,null,"May"]
[null,null,null,null,null,null,null,null,null,null,"Jun"]
[null,null,null,null,null,null,null,null,null,null,"Jul"]
[null,null,null,null,null,null,null,null,null,null,"Aug"]
[null,null,null,null,null,null,null,null,null,null,"Sep"]
[null,null,null,null,null,null,null,null,null,null,"Oct"]
[null,null,null,null,null,null,null,null,null,null,"Nov"]
["Comments :",null,null,null,null,null,null,null,null,null,"Dec"]
[null,null,null,null,null,null,null,null,null,null,"Annual",{"$f":"AVERAGE(L37:L48)","v":"#DIV/0!"},{"$f":"MAX(M37:M48)","v":0},{"$f":"AVERAGE(N37:N48)","v":"#DIV/0!"},{"$f":"MAX(O37:O48)","v":0}]
[]
[null,null,null,null,null,null,null,null,null,{"$f":"+A5","v":2024},"mg/Nm3","Monthly mean of half-hourly averages","Highest half- hourly average","Monthly mean of  daily averages","Highest daily average"]
[null,null,null,null,null,null,null,null,null,"A4","Jan"]
[null,null,null,null,null,null,null,null,null,null,"Feb"]
[null,null,null,null,null,null,null,null,null,null,"Mar"]
[null,null,null,null,null,null,null,null,null,null,"Apr"]
[null,null,null,null,null,null,null,null,null,null,"May"]
[null,null,null,null,null,null,null,null,null,null,"Jun"]
[null,null,null,null,null,null,null,null,null,null,"Jul"]
[null,null,null,null,null,null,null,null,null,null,"Aug"]
[null,null,null,null,null,null,null,null,null,null,"Sep"]
[null,null,null,null,null,null,null,null,null,null,"Oct"]
[null,null,9.245,9.401,9.358,9.326,null,null,null,null,"Nov"]
[null,null,null,null,null,null,null,null,null,null,"Dec"]
[null,null,null,null,null,null,null,null,null,null,"Annual",{"$f":"AVERAGE(L52:L63)","v":"#DIV/0!"},{"$f":"MAX(M52:M63)","v":0},{"$f":"AVERAGE(N52:N63)","v":"#DIV/0!"},{"$f":"MAX(O52:O63)","v":0}]
[]
[null,null,null,null,null,null,null,null,null,{"$f":"+A5","v":2024},"mg/Nm3","Monthly mean of half-hourly averages","Highest half- hourly average","Monthly mean of  daily averages","Highest daily average"]
[null,null,null,null,null,null,null,null,null,"A5","Jan"]
[null,null,null,null,null,null,null,null,null,null,"Feb"]
[null,null,null,null,null,null,null,null,null,null,"Mar"]
[null,null,null,null,null,null,null,null,null,null,"Apr"]
[null,null,null,null,null,null,null,null,null,null,"May"]
[null,null,null,null,null,null,null,null,null,null,"Jun"]
[null,null,null,null,null,null,null,null,null,null,"Jul"]
[null,null,null,null,null,null,null,null,null,null,"Aug"]
[null,null,null,null,null,null,null,null,null,null,"Sep"]
[null,null,null,null,null,null,null,null,null,null,"Oct"]
[null,null,null,null,null,null,null,null,null,null,"Nov"]
[null,null,null,null,null,null,null,null,null,null,"Dec"]
[null,null,null,null,null,null,null,null,null,null,"Annual",{"$f":"AVERAGE(L67:L78)","v":"#DIV/0!"},{"$f":"MAX(M67:M78)","v":0},{"$f":"AVERAGE(N67:N78)","v":"#DIV/0!"},{"$f":"MAX(O67:O78)","v":0}]

{"sheet":"CO 0.5 hourly","index":20,"n_rows":82,"n_cols":17,"rows_kept":82,"cut":false,"hidden":false,"merged":[[9,9,21,9],[24,9,36,9],[39,9,51,9],[50,0,50,6],[51,0,54,6],[54,9,66,9],[69,9,81,9],[4,0,5,6],[6,16,10,18],[7,1,7,3],[7,4,7,6],[7,9,7,14],[12,16,14,18],[15,16,18,18]]}
[{"$f":"+'Cover Page'!$B$29","v":"Annual Performance Report 2024"},null,null,null,{"$f":"+'Cover Page'!$B$33","v":"SELCHP"}]
[]
["Monitoring of Carbon Monoxide (half hourly)",null,null,"Whole Installation",null,null,"See  Notes in Cell Q3",null,null,{"$f":"+A3","v":"Monitoring of Carbon Monoxide (half hourly)"},null,null,null,"Per Combustion Line",null,null,"Notes:"]
[]
["Please complete this tab for your plant if you have 1/2 hourly CO ELVs; otherwise, leave it blank and complete the CO 95% 10 min tab"]
[]
[null,null,null,null,null,null,null,null,null,null,null,null,null,null,null,null,"User to add logic to complete Whole installation, Table A5:G18. From the data in Per Combustion Line, Table J6:O79, subject to No. of lines installed"]
[{"$f":"+'Cover Page'!C39","v":2024},"1/2 Hourly Reference Periods",null,null,"Daily Reference Periods"]
["mg/Nm3","1/2 hourly CO ELV","Monthly mean of half-hourly averages","Highest half- hourly average","Daily CO ELV","Monthly mean of  daily averages","Highest daily average",null,null,{"$f":"+A8","v":2024},"mg/Nm3","Monthly mean of half-hourly averages","Highest half- hourly average","Monthly mean of  daily averages","Highest daily average"]
["Jan",100.0,null,null,50.0,null,null,null,null,"A1","Jan"]
["Feb",{"$f":"+B10","v":100},null,null,{"$f":"+E10","v":50},null,null,null,null,null,"Feb"]
["Mar",100,null,null,50,null,null,null,null,null,"Mar",null,null,null,null,null,"Whole Installation table A5:G18:"]
["Apr",100,null,null,50,null,null,null,null,null,"Apr",null,null,null,null,null,"Mean: for 1/2 hourly and daily periods calculate mean of values across all operational combustion lines for the month"]
["May",100,null,null,50,null,null,null,null,null,"May"]
["Jun",100,null,null,50,null,null,null,null,null,"Jun"]
["Jul",100,null,null,50,null,null,null,null,null,"Jul",null,null,null,null,null,"Maximum: for 1/2 hourly and daily periods use the highest value across all operational combustion lines for the month"]
["Aug",100,null,null,50,null,null,null,null,null,"Aug"]
["Sep",100,null,null,50,null,null,null,null,null,"Sep"]
["Oct",100,null,null,50,null,null,null,null,null,"Oct"]
["Nov",100,null,null,50,null,null,null,null,null,"Nov"]
["Dec",100,null,null,50,null,null,null,null,null,"Dec"]
[null,null,null,null,null,null,null,null,null,null,"Annual",{"$f":"AVERAGE(L10:L21)","v":"#DIV/0!"},{"$f":"MAX(M10:M21)","v":0},{"$f":"AVERAGE(N10:N21)","v":"#DIV/0!"},{"$f":"MAX(O10:O21)","v":0}]
[]
[null,null,null,null,null,null,null,null,null,{"$f":"+A8","v":2024},"mg/Nm3","Monthly mean of half-hourly averages","Highest half- hourly average","Monthly mean of  daily averages","Highest daily average"]
[null,null,null,null,null,null,null,null,null,"A2","Jan"]
[null,null,null,null,null,null,null,null,null,null,"Feb"]
[null,null,null,null,null,null,null,null,null,null,"Mar"]
[null,null,null,null,null,null,null,null,null,null,"Apr"]
[null,null,null,null,null,null,null,null,null,null,"May"]
[null,null,null,null,null,null,null,null,null,null,"Jun"]
[null,null,null,null,null,null,null,null,null,null,"Jul"]
[null,null,null,null,null,null,null,null,null,null,"Aug"]
[null,null,null,null,null,null,null,null,null,null,"Sep"]
[null,null,null,null,null,null,null,null,null,null,"Oct"]
[null,null,null,null,null,null,null,null,null,null,"Nov"]
[null,null,null,null,null,null,null,null,null,null,"Dec"]
[null,null,null,null,null,null,null,null,null,null,"Annual",{"$f":"AVERAGE(L25:L36)","v":"#DIV/0!"},{"$f":"MAX(M25:M36)","v":0},{"$f":"AVERAGE(N25:N36)","v":"#DIV/0!"},{"$f":"MAX(O25:O36)","v":0}]
[]
[null,null,null,null,null,null,null,null,null,{"$f":"+A8","v":2024},"mg/Nm3","Monthly mean of half-hourly averages","Highest half- hourly average","Monthly mean of  daily averages","Highest daily average"]
[null,null,null,null,null,null,null,null,null,"A3","Jan"]
[null,null,null,null,null,null,null,null,null,null,"Feb"]
[null,null,null,null,null,null,null,null,null,null,"Mar"]
[null,null,null,null,null,null,null,null,null,null,"Apr"]
[null,null,null,null,null,null,null,null,null,null,"May"]
[null,null,null,null,null,null,null,null,null,null,"Jun"]
[null,null,null,null,null,null,null,null,null,null,"Jul"]
[null,null,null,null,null,null,null,null,null,null,"Aug"]
[null,null,null,null,null,null,null,null,null,null,"Sep"]
[null,null,null,null,null,null,null,null,null,null,"Oct"]
[null,null,null,null,null,null,null,null,null,null,"Nov"]
["Comments :",null,null,null,null,null,null,null,null,null,"Dec"]
[null,null,null,null,null,null,null,null,null,null,"Annual",{"$f":"AVERAGE(L40:L51)","v":"#DIV/0!"},{"$f":"MAX(M40:M51)","v":0},{"$f":"AVERAGE(N40:N51)","v":"#DIV/0!"},{"$f":"MAX(O40:O51)","v":0}]
[]
[null,null,null,null,null,null,null,null,null,{"$f":"+A8","v":2024},"mg/Nm3","Monthly mean of half-hourly averages","Highest half- hourly average","Monthly mean of  daily averages","Highest daily average"]
[null,null,null,null,null,null,null,null,null,"A4","Jan"]
[null,null,null,null,null,null,null,null,null,null,"Feb"]
[null,null,null,null,null,null,null,null,null,null,"Mar"]
[null,null,null,null,null,null,null,null,null,null,"Apr"]
[null,null,null,null,null,null,null,null,null,null,"May"]
[null,null,null,null,null,null,null,null,null,null,"Jun"]
[null,null,null,null,null,null,null,null,null,null,"Jul"]
[null,null,9.245,9.401,9.358,9.326,null,null,null,null,"Aug"]
[null,null,null,null,null,null,null,null,null,null,"Sep"]
[null,null,null,null,null,null,null,null,null,null,"Oct"]
[null,null,null,null,null,null,null,null,null,null,"Nov"]
[null,null,null,null,null,null,null,null,null,null,"Dec"]
[null,null,null,null,null,null,null,null,null,null,"Annual",{"$f":"AVERAGE(L55:L66)","v":"#DIV/0!"},{"$f":"MAX(M55:M66)","v":0},{"$f":"AVERAGE(N55:N66)","v":"#DIV/0!"},{"$f":"MAX(O55:O66)","v":0}]
[]
[null,null,null,null,null,null,null,null,null,{"$f":"+A8","v":2024},"mg/Nm3","Monthly mean of half-hourly averages","Highest half- hourly average","Monthly mean of  daily averages","Highest daily average"]
[null,null,null,null,null,null,null,null,null,"A5","Jan"]
[null,null,null,null,null,null,null,null,null,null,"Feb"]
[null,null,null,null,null,null,null,null,null,null,"Mar"]
[null,null,null,null,null,null,null,null,null,null,"Apr"]
[null,null,null,null,null,null,null,null,null,null,"May"]
[null,null,null,null,null,null,null,null,null,null,"Jun"]
[null,null,null,null,null,null,null,null,null,null,"Jul"]
[null,null,null,null,null,null,null,null,null,null,"Aug"]
[null,null,null,null,null,null,null,null,null,null,"Sep"]
[null,null,null,null,null,null,null,null,null,null,"Oct"]
[null,null,null,null,null,null,null,null,null,null,"Nov"]
[null,null,null,null,null,null,null,null,null,null,"Dec"]
[null,null,null,null,null,null,null,null,null,null,"Annual",{"$f":"AVERAGE(L70:L81)","v":"#DIV/0!"},{"$f":"MAX(M70:M81)","v":0},{"$f":"AVERAGE(N70:N81)","v":"#DIV/0!"},{"$f":"MAX(O70:O81)","v":0}]

{"sheet":"CO 95% 10 min","index":21,"n_rows":82,"n_cols":19,"rows_kept":82,"cut":false,"hidden":false,"merged":[[9,10,21,10],[24,10,36,10],[39,10,51,10],[50,0,50,7],[51,0,54,7],[54,10,66,10],[69,10,81,10],[4,0,5,7],[6,18,10,20],[7,1,7,4],[7,5,7,7],[7,10,7,16],[12,18,14,20],[15,18,18,20]]}
[{"$f":"+'Cover Page'!$B$29","v":"Annual Performance Report 2024"},null,null,null,{"$f":"+'Cover Page'!$B$33","v":"SELCHP"}]
[]
["Monitoring of Carbon Monoxide (10-minute avg)",null,null,null,"Whole Installation",null,null,"See  Notes in Cell S3",null,{"$f":"+A3","v":"Monitoring of Carbon Monoxide (10-minute avg)"},null,null,null,null,"Per Combustion Line",null,"Notes:",null,"Notes:"]
[]
["Please complete this tab for your plant if you have 10-minute average CO ELVs; otherwise, leave it blank and complete the CO 0.5 hourly tab"]
[]
[null,null,null,null,null,null,null,null,null,null,null,null,null,null,null,null,null,null,"User to add logic to complete Whole installation, Table A5:H18. From the data in Per Combustion Line, Table K6:Q79, subject to No. of lines installed"]
[{"$f":"+'Cover Page'!C39","v":2024},"10-minute Reference Periods",null,null,null,"Daily Reference Periods"]
["mg/Nm3","95%ile 10-min avg CO ELV","Highest daily 95%ile 10-min average","Monthly mean of 10-min averages","Highest 10-min average","Daily CO ELV","Monthly mean of  daily averages","Highest daily average",null,null,{"$f":"+A8","v":2024},"mg/Nm3","Highest daily 95%ile 10-min average","Monthly mean of 10-min averages","Highest 10-min average","Monthly mean of  daily averages","Highest daily average"]
["Jan",150.0,35.51,4.88,343.62,50.0,4.89,10.27,null,null,"A1","Jan",35.51,5.72,343.62,5.72,10.27]
["Feb",{"$f":"+B10","v":150},25.69,4.81,889.53,{"$f":"+F10","v":50},4.81,12.44,null,null,null,"Feb",25.69,4.57,889.53,4.6,12.38]
["Mar",150,16.98,3.84,396.64,50,3.85,8.69,null,null,null,"Mar",16.98,4.78,396.64,4.79,8.69,null,"Whole Installation table A5:H18:"]
["Apr",150,35.04,5.59,708.49,50,5.65,14.37,null,null,null,"Apr",35.04,6.8,558.79,6.97,14.37,null,"Mean: for 10-min and daily periods use average of all operational combustion lines."]
["May",150,72.49,5.9,542.39,50,5.92,17.44,null,null,null,"May",72.49,9.33,542.39,9.33,17.44]
["Jun",150,56.46,5.61,2536.81,50,5.78,21.22,null,null,null,"Jun",56.46,12.18,647.74,12.19,19.24]
["Jul",150,80.64,7.01,762.41,50,6.64,16.39,null,null,null,"Jul",80.64,10.51,762.41,9.98,16.39,null,"Maximum: for 10-min and daily periods use the highest of all operational combustion lines in any month."]
["Aug",150,51.1,5.98,1016.39,50,6.07,22.16,null,null,null,"Aug",51.1,10.63,1016.39,10.67,22.16]
["Sep",150,83.89,6.31,438.91,50,6.21,18.78,null,null,null,"Sep",83.89,10.8,438.91,10.68,18.78]
["Oct",150,65.63,5.81,515.43,50,5.89,13.8,null,null,null,"Oct",65.63,8.67,515.43,8.68,13.8]
["Nov",150,47.52,9.64,785.25,50,9.64,20.28,null,null,null,"Nov",47.52,9.83,785.25,9.83,20.28]
["Dec",150,47.65,10.43,399.53,50,10.4,14.66,null,null,null,"Dec",47.65,11.47,399.53,11.47,14.66]
[null,null,null,null,null,null,null,null,null,null,null,"Annual",{"$f":"AVERAGE(M10:M21)","v":51.55},null,{"$f":"MAX(O10:O21)","v":1016.39},{"$f":"AVERAGE(P10:P21)","v":8.7425},{"$f":"MAX(Q10:Q21)","v":22.16}]
[]
[null,null,null,null,null,null,null,null,null,null,{"$f":"+A8","v":2024},"mg/Nm3","Highest daily 95%ile 10-min average","Monthly mean of 10-min averages","Highest 10-min average","Monthly mean of  daily averages","Highest daily average"]
[null,null,null,null,null,null,null,null,null,null,"A2","Jan",14.06,4.05,331.43,4.05,7.03]
[null,null,null,null,null,null,null,null,null,null,null,"Feb",14.2,5.07,154.15,5.02,12.44]
[null,null,null,null,null,null,null,null,null,null,null,"Mar",7.99,2.96,120.07,2.97,6.45]
[null,null,null,null,null,null,null,null,null,null,null,"Apr",12.82,4.39,708.49,4.37,12.48]
[null,null,null,null,null,null,null,null,null,null,null,"May",16.55,2.49,284.19,2.5,7.86]
[null,null,null,null,null,null,null,null,null,null,null,"Jun",34.54,1.92,2536.81,2.08,21.22]
[null,null,null,null,null,null,null,null,null,null,null,"Jul",20.68,1.19,193.18,1.29,4.92]
[null,null,null,null,null,null,null,null,null,null,null,"Aug",19.41,1.73,170.83,1.81,9.39]
[null,null,null,null,null,null,null,null,null,null,null,"Sep",23.71,2.19,375.16,2.19,5.3]
[null,null,null,null,null,null,null,null,null,null,null,"Oct",12.63,2.69,225.11,2.68,5.93]
[null,null,null,null,null,null,null,null,null,null,null,"Nov",23.01,9.45,305.01,9.45,14.1]
[null,null,null,null,null,null,null,null,null,null,null,"Dec",17.73,9.26,258.36,9.13,11.04]
[null,null,null,null,null,null,null,null,null,null,null,"Annual",{"$f":"AVERAGE(M25:M36)","v":18.11083333},null,{"$f":"MAX(O25:O36)","v":2536.81},{"$f":"AVERAGE(P25:P36)","v":3.961666667},{"$f":"MAX(Q25:Q36)","v":21.22}]
[]
[null,null,null,null,null,null,null,null,null,null,{"$f":"+A8","v":2024},"mg/Nm3","Highest daily 95%ile 10-min average","Monthly mean of 10-min averages","Highest 10-min average","Monthly mean of  daily averages","Highest daily average"]
[null,null,null,null,null,null,null,null,null,null,"A3","Jan"]
[null,null,null,null,null,null,null,null,null,null,null,"Feb"]
[null,null,null,null,null,null,null,null,null,null,null,"Mar"]
[null,null,null,null,null,null,null,null,null,null,null,"Apr"]
[null,null,null,null,null,null,null,null,null,null,null,"May"]
[null,null,null,null,null,null,null,null,null,null,null,"Jun"]
[null,null,null,null,null,null,null,null,null,null,null,"Jul"]
[null,null,null,null,null,null,null,null,null,null,null,"Aug"]
[null,null,null,null,null,null,null,null,null,null,null,"Sep"]
[null,null,null,null,null,null,null,null,null,null,null,"Oct"]
[null,null,null,null,null,null,null,null,null,null,null,"Nov"]
["Comments :",null,null,null,null,null,null,null,null,null,null,"Dec"]
["Environment Agency explanatory note: The 10-minute average ELV is based on the “95th percentile”. In this case this means that 95% of the 10 minute averages in the relevant 24-hour period (i.e. 137) must be below 150 mg/Nm3, and 5% (i.e. 7) are allowed to be any value above 150 mg/Nm3. Whilst we expect operators to minimise CO emissions at all times, it is perfectly acceptable for the value of the maximum 10-minute average to be above 150 mg/Nm3, provided the 95th percentile ELV has been met for that period. ",null,null,null,null,null,null,null,null,null,null,"Annual",{"$f":"AVERAGE(M40:M51)","v":"#DIV/0!"},null,{"$f":"MAX(O40:O51)","v":0},{"$f":"AVERAGE(P40:P51)","v":"#DIV/0!"},{"$f":"MAX(Q40:Q51)","v":0}]
[]
[null,null,null,null,null,null,null,null,null,null,{"$f":"+A8","v":2024},"mg/Nm3","Highest daily 95%ile 10-min average","Monthly mean of 10-min averages","Highest 10-min average","Monthly mean of  daily averages","Highest daily average"]
[null,null,null,null,null,null,null,null,null,null,"A4","Jan"]
[null,null,null,null,null,null,null,null,null,null,null,"Feb"]
[null,null,null,null,null,null,null,null,null,null,null,"Mar"]
[null,null,null,null,null,null,null,null,null,null,null,"Apr"]
[null,null,null,null,null,null,null,null,null,null,null,"May"]
[null,null,null,null,null,null,null,null,null,null,null,"Jun"]
[null,null,null,null,null,null,null,null,null,null,null,"Jul"]
[null,null,9.245,9.401,9.358,9.326,null,null,null,null,null,"Aug"]
[null,null,null,null,null,null,null,null,null,null,null,"Sep"]
[null,null,null,null,null,null,null,null,null,null,null,"Oct"]
[null,null,null,null,null,null,null,null,null,null,null,"Nov"]
[null,null,null,null,null,null,null,null,null,null,null,"Dec"]
[null,null,null,null,null,null,null,null,null,null,null,"Annual",{"$f":"AVERAGE(M55:M66)","v":"#DIV/0!"},null,{"$f":"MAX(O55:O66)","v":0},{"$f":"AVERAGE(P55:P66)","v":"#DIV/0!"},{"$f":"MAX(Q55:Q66)","v":0}]
[]
[null,null,null,null,null,null,null,null,null,null,{"$f":"+A8","v":2024},"mg/Nm3","95%ile 10-min avg maximum","Monthly CO 10-min avg mean","10-min avg maximum","Monthly daily mean","Monthly daily maximum"]
[null,null,null,null,null,null,null,null,null,null,"A5","Jan"]
[null,null,null,null,null,null,null,null,null,null,null,"Feb"]
[null,null,null,null,null,null,null,null,null,null,null,"Mar"]
[null,null,null,null,null,null,null,null,null,null,null,"Apr"]
[null,null,null,null,null,null,null,null,null,null,null,"May"]
[null,null,null,null,null,null,null,null,null,null,null,"Jun"]
[null,null,null,null,null,null,null,null,null,null,null,"Jul"]
[null,null,null,null,null,null,null,null,null,null,null,"Aug"]
[null,null,null,null,null,null,null,null,null,null,null,"Sep"]
[null,null,null,null,null,null,null,null,null,null,null,"Oct"]
[null,null,null,null,null,null,null,null,null,null,null,"Nov"]
[null,null,null,null,null,null,null,null,null,null,null,"Dec"]
[null,null,null,null,null,null,null,null,null,null,null,"Annual",{"$f":"AVERAGE(M70:M81)","v":"#DIV/0!"},null,{"$f":"MAX(O70:O81)","v":0},{"$f":"AVERAGE(P70:P81)","v":"#DIV/0!"},{"$f":"MAX(Q70:Q81)","v":0}]

{"sheet":"NH3","index":22,"n_rows":79,"n_cols":17,"rows_kept":79,"cut":false,"hidden":false,"merged":[[6,9,18,9],[21,9,33,9],[36,9,48,9],[47,0,47,6],[48,0,51,6],[51,9,63,9],[66,9,78,9],[3,16,7,18],[4,1,4,3],[4,4,4,6],[4,9,4,14],[9,16,11,18],[12,16,15,18],[18,4,18,6]]}
[{"$f":"+'Cover Page'!$B$29","v":"Annual Performance Report 2024"},null,null,null,{"$f":"+'Cover Page'!$B$33","v":"SELCHP"}]
[]
["Monitoring of Ammnonia emissions ",null,null,"Whole Installation",null,null,"See  Notes in Cell Q3",null,null,{"$f":"+A3","v":"Monitoring of Ammnonia emissions "},null,null,null,"Per Combustion Line",null,null,"Notes:"]
[null,null,null,null,null,null,null,null,null,null,null,null,null,null,null,null,"User to add logic to complete Whole installation, Table A5:G18. From the data in Per Combustion Line, Table J6:O79, subject to No. of lines installed"]
[{"$f":"+'Cover Page'!C39","v":2024},"1/2 Hourly Reference Periods",null,null,"Daily Reference Periods"]
["mg/Nm3","1/2 hourly NH3 ELV","Monthly mean of half-hourly averages","Highest half- hourly average","Daily NH3 ELV","Monthly mean of  daily averages","Highest daily average",null,null,{"$f":"+A5","v":2024},"mg/Nm3","Monthly mean of half-hourly averages","Highest half- hourly average","Monthly mean of  daily averages","Highest daily average"]
["Jan","None",4.29,23.67,15.0,4.29,8.53,null,null,"A1","Jan",6.17,23.67,6.17,8.53]
["Feb",{"$f":"+B7","v":"None"},4.4,22.28,15.0,4.48,9.25,null,null,null,"Feb",6.29,22.28,6.4,9.25]
["Mar","None",3.79,20.71,15.0,3.79,8.32,null,null,null,"Mar",6.36,20.71,6.36,8.32,null,"Whole Installation table A5:G18:"]
["Apr","None",5.74,29.43,15.0,5.72,10.93,null,null,null,"Apr",7.81,29.43,7.83,10.93,null,"Mean: for 1/2 hourly and daily periods calculate mean of values across all operational combustion lines for the month"]
["May","None",7.34,27.67,15.0,7.34,12.23,null,null,null,"May",9.15,27.67,9.15,12.23]
["Jun","None",5.7,32.57,15.0,5.68,11.37,null,null,null,"Jun",7.36,32.57,7.27,11.37]
["Jul","None",7.19,31.28,15.0,7.15,12.45,null,null,null,"Jul",8.09,31.28,7.98,12.45,null,"Maximum: for 1/2 hourly and daily periods use the highest value across all operational combustion lines for the month"]
["Aug","None",6.34,22.53,15.0,6.37,10.55,null,null,null,"Aug",7.7,22.53,7.8,10.55]
["Sep","None",5.76,24.22,15.0,5.73,12.9,null,null,null,"Sep",7.19,24.22,7.16,12.9]
["Oct","None",5.57,25.05,15.0,5.57,10.12,null,null,null,"Oct",6.85,25.05,6.85,10.12]
["Nov","None",3.76,28.28,15.0,3.76,9.37,null,null,null,"Nov",5.05,28.28,5.05,9.37]
["Dec","None",4.83,23.22,15.0,4.85,8.81,null,null,null,"Dec",5.77,23.22,5.77,8.81]
[null,null,null,null,null,null,null,null,null,null,"Annual",{"$f":"AVERAGE(L7:L18)","v":6.9825},{"$f":"MAX(M7:M18)","v":32.57},{"$f":"AVERAGE(N7:N18)","v":6.9825},{"$f":"MAX(O7:O18)","v":12.9}]
[]
[null,null,null,null,null,null,null,null,null,{"$f":"+A5","v":2024},"mg/Nm3","Monthly mean of half-hourly averages","Highest half- hourly average","Monthly mean of  daily averages","Highest daily average"]
[null,null,null,null,null,null,null,null,null,"A2","Jan",2.41,8.29,2.4,3.84]
[null,null,null,null,null,null,null,null,null,null,"Feb",2.37,13.29,2.41,5.38]
[null,null,null,null,null,null,null,null,null,null,"Mar",1.38,10.28,1.39,3.68]
[null,null,null,null,null,null,null,null,null,null,"Apr",3.66,14.41,3.67,7.9]
[null,null,null,null,null,null,null,null,null,null,"May",5.54,19.57,5.54,9.05]
[null,null,null,null,null,null,null,null,null,null,"Jun",4.76,23.11,4.77,7.96]
[null,null,null,null,null,null,null,null,null,null,"Jul",5.7,17.58,5.83,11.14]
[null,null,null,null,null,null,null,null,null,null,"Aug",5.1,16.19,5.04,7.96]
[null,null,null,null,null,null,null,null,null,null,"Sep",4.44,20.44,4.44,7.76]
[null,null,null,null,null,null,null,null,null,null,"Oct",4.15,14.85,4.09,7.3]
[null,null,null,null,null,null,null,null,null,null,"Nov",2.48,13.37,2.48,4.87]
[null,null,null,null,null,null,null,null,null,null,"Dec",3.76,17.04,3.75,6.35]
[null,null,null,null,null,null,null,null,null,null,"Annual",{"$f":"AVERAGE(L22:L33)","v":3.8125},{"$f":"MAX(M22:M33)","v":23.11},{"$f":"AVERAGE(N22:N33)","v":3.8175},{"$f":"MAX(O22:O33)","v":11.14}]
[]
[null,null,null,null,null,null,null,null,null,{"$f":"+A5","v":2024},"mg/Nm3","Monthly mean of half-hourly averages","Highest half- hourly average","Monthly mean of  daily averages","Highest daily average"]
[null,null,null,null,null,null,null,null,null,"A3","Jan"]
[null,null,null,null,null,null,null,null,null,null,"Feb"]
[null,null,null,null,null,null,null,null,null,null,"Mar"]
[null,null,null,null,null,null,null,null,null,null,"Apr"]
[null,null,null,null,null,null,null,null,null,null,"May"]
[null,null,null,null,null,null,null,null,null,null,"Jun"]
[null,null,null,null,null,null,null,null,null,null,"Jul"]
[null,null,null,null,null,null,null,null,null,null,"Aug"]
[null,null,null,null,null,null,null,null,null,null,"Sep"]
[null,null,null,null,null,null,null,null,null,null,"Oct"]
[null,null,null,null,null,null,null,null,null,null,"Nov"]
["Comments :",null,null,null,null,null,null,null,null,null,"Dec"]
["An indicated ELV value of zero in the table above means that no ammonia limit is/was set in the permit.  ",null,null,null,null,null,null,null,null,null,"Annual",{"$f":"AVERAGE(L37:L48)","v":"#DIV/0!"},{"$f":"MAX(M37:M48)","v":0},{"$f":"AVERAGE(N37:N48)","v":"#DIV/0!"},{"$f":"MAX(O37:O48)","v":0}]
[]
[null,null,null,null,null,null,null,null,null,{"$f":"+A5","v":2024},"mg/Nm3","Monthly mean of half-hourly averages","Highest half- hourly average","Monthly mean of  daily averages","Highest daily average"]
[null,null,null,null,null,null,null,null,null,"A4","Jan"]
[null,null,null,null,null,null,null,null,null,null,"Feb"]
[null,null,null,null,null,null,null,null,null,null,"Mar"]
[null,null,null,null,null,null,null,null,null,null,"Apr"]
[null,null,null,null,null,null,null,null,null,null,"May"]
[null,null,null,null,null,null,null,null,null,null,"Jun"]
[null,null,null,null,null,null,null,null,null,null,"Jul"]
[null,null,null,null,null,null,null,null,null,null,"Aug"]
[null,null,null,null,null,null,null,null,null,null,"Sep"]
[null,null,null,null,null,null,null,null,null,null,"Oct"]
[null,null,9.245,9.401,9.358,9.326,null,null,null,null,"Nov"]
[null,null,null,null,null,null,null,null,null,null,"Dec"]
[null,null,null,null,null,null,null,null,null,null,"Annual",{"$f":"AVERAGE(L52:L63)","v":"#DIV/0!"},{"$f":"MAX(M52:M63)","v":0},{"$f":"AVERAGE(N52:N63)","v":"#DIV/0!"},{"$f":"MAX(O52:O63)","v":0}]
[]
[null,null,null,null,null,null,null,null,null,{"$f":"+A5","v":2024},"mg/Nm3","Monthly mean of half-hourly averages","Highest half- hourly average","Monthly mean of  daily averages","Highest daily average"]
[null,null,null,null,null,null,null,null,null,"A5","Jan"]
[null,null,null,null,null,null,null,null,null,null,"Feb"]
[null,null,null,null,null,null,null,null,null,null,"Mar"]
[null,null,null,null,null,null,null,null,null,null,"Apr"]
[null,null,null,null,null,null,null,null,null,null,"May"]
[null,null,null,null,null,null,null,null,null,null,"Jun"]
[null,null,null,null,null,null,null,null,null,null,"Jul"]
[null,null,null,null,null,null,null,null,null,null,"Aug"]
[null,null,null,null,null,null,null,null,null,null,"Sep"]
[null,null,null,null,null,null,null,null,null,null,"Oct"]
[null,null,null,null,null,null,null,null,null,null,"Nov"]
[null,null,null,null,null,null,null,null,null,null,"Dec"]
[null,null,null,null,null,null,null,null,null,null,"Annual",{"$f":"AVERAGE(L67:L78)","v":"#DIV/0!"},{"$f":"MAX(M67:M78)","v":0},{"$f":"AVERAGE(N67:N78)","v":"#DIV/0!"},{"$f":"MAX(O67:O78)","v":0}]

{"sheet":"Template changes log","index":23,"n_rows":18,"n_cols":3,"rows_kept":18,"cut":false,"hidden":false,"merged":[]}
["Log of changes to template (Environment Agency use only)"]
[]
["Date","Description of change","New version number and date"]
["2024-01-16","Air (periodic) tab: corrected default O2 reference from 6 to 11% ","Version 23.5a (for incinerators) - 16/01/2024"]
["2024-09-23","Air (periodic) tab: corrected symbol for Thallium to Tl"]
["2024-09-23","Air (periodic) tab: removed last year's references to different emission limit values applying from 03/12/23 and updated all relevant ELVs"]
["2024-09-23","Tabs for continuously monitored pollutants (HCl, SO2 etc.): changed terminology in table headings to improve clarity"]
["2024-09-23","Tabs for continuously monitored pollutants (HCl, SO2 etc.): removed last year's references to different emission limit values applying from 03/12/23 and updated all relevant ELVs"]
["2024-09-23","Perf 1 tab: updated formula for water usage to report m3 rather than litres and corrected error with formula copying operator name"]
["2024-09-23","Operational Summary tab: table added on start-ups and shut-downs"]
["2024-09-23","Operational Summary tab: table added on dioxins and mercury protocols"]
["2024-09-23","Operational Summary tab: table added on AST, QAL 2 and calibration functions"]
["2024-09-23","CO2 N2O tab: various changes made to notes to reflect the fact that most plants should now have calibrated CEMS and flow meters + some have C14 samplers and more up to date industry data","Version 24a (for incinerators) - 23/09/24"]
["2024-11-08","CO2 N2O tab: Changed the N2O CO2 equivalence factor from 298 to 265 in line with recently updated government greenhouse gas figures: https://www.gov.uk/government/publications/greenhouse-gas-reporting-conversion-factors-2024"]
["2024-11-08","CO2 N2O tab: Added an additional requirement for municipal EfW plants to state the yearly average biogenic percentage of the waste by mass, and reference to a document which sets out a methodology for calculating NCV of waste from the results of C14 sampling."]
["2024-11-08","Permit Compliance tab: Two additional columns added + explanatory notes to the table entitled \"Summary of non-compliances under the permit\" to allow CCS scores to be stated where relevant. "]
["2024-11-08","Residue Quality tab: Note added explaining application of TOC and LOI limits and asking operators to report both metrics where measured. ","Version 24.1a (for incinerators) - 08/11/24"]
["2024-11-27","Operational Summary tab: Tables on mercury & dioxins protocols and ASTs removed (covered instead by new tables added to updated Air 9 periodic monitoring form)","Version 24.2a (for incinerators) - 27/11/24"]